{"text_format":"1","workbook":"xlsx","n_sheets":6,"sheets":["TT","Dash","Backend","Data In","Data Out","Settings"],"not_rendered":{"charts":7,"images":15,"macros":1,"external_links":0,"defined_names":35,"comments":0,"pivot_tables":0},"unopened":[],"bounds":{"document_bytes":16777216,"sheet_cells":100000,"rows_first":2000,"rows_last":500,"rows_between":2000,"halvings":0,"cell_chars":16384,"cell_head_chars":4096},"cells_cut":0,"cells_raw":0,"read":"whole","date_system":"1900"}

{"sheet":"TT","index":0,"n_rows":62,"n_cols":19,"rows_kept":62,"cut":false,"hidden":true,"merged":[]}
[]
[null,"Row","Tab","Location","Language 1","Language 2","Language 3","Language 4","Language 5","Language 6","Language 7","Language 8","Language 9","Language 10","Display"]
[null,{"$f":"ROW()","v":3},"Instructions",{"$f":"\"WindSpeed-\"&TT[[#This Row],[Tab]]","v":"WindSpeed-Instructions"},"This workbook uses \"Macros\" (automated Excel commands) to assist in the data collection process","Esta pasta de trabalho usa \"Macros” (comandos automatizados do Excel) para ajudar no processo de coleta de dados",null,null,null,null,null,null,null,null,{"$f":"INDEX(TT[[#This Row],[Language 1]:[Language 10]],1,LanguageSelect)","v":"This workbook uses \"Macros\" (automated Excel commands) to assist in the data collection process"},null,null,"Select Language",{"$f":"MATCH(LanguageSel,TT!$S$5:$S$14,0)","v":1}]
[null,{"$f":"ROW()","v":4},"Instructions",{"$f":"\"WindSpeed-\"&TT[[#This Row],[Tab]]","v":"WindSpeed-Instructions"},"To use these Macros and have buttons on the spreadsheets work, you must \"Enable\" the Macros","Para usar estes Macros e ter botões na planilha de trabalho, você deve habilitar os Macros",null,null,null,null,null,null,null,null,{"$f":"INDEX(TT[[#This Row],[Language 1]:[Language 10]],1,LanguageSelect)","v":"To use these Macros and have buttons on the spreadsheets work, you must \"Enable\" the Macros"}]
[null,{"$f":"ROW()","v":5},"Instructions",{"$f":"\"WindSpeed-\"&TT[[#This Row],[Tab]]","v":"WindSpeed-Instructions"},"Click the \"Enable Content\" button that appears above when you first open this workbook","Clique o botão do \" Habilitar Conteúdo\" que aparece em cima ao abrir pela primeira vez esta pasta de trabalho",null,null,null,null,null,null,null,null,{"$f":"INDEX(TT[[#This Row],[Language 1]:[Language 10]],1,LanguageSelect)","v":"Click the \"Enable Content\" button that appears above when you first open this workbook"},null,null,1,"English"]
[null,{"$f":"ROW()","v":6},"Instructions",{"$f":"\"WindSpeed-\"&TT[[#This Row],[Tab]]","v":"WindSpeed-Instructions"},"Once you have enabled macros, you can use the workbook.  If you do not see this message, macros are enabled","Após a habilitação das macros, você pode usar a pasta de trabalho. Se você não vir esta mensagem, as macros estão habilitados",null,null,null,null,null,null,null,null,{"$f":"INDEX(TT[[#This Row],[Language 1]:[Language 10]],1,LanguageSelect)","v":"Once you have enabled macros, you can use the workbook.  If you do not see this message, macros are enabled"},null,null,2,"Português"]
[null,{"$f":"ROW()","v":7},"Dashboard",{"$f":"\"WindSpeed-\"&TT[[#This Row],[Tab]]","v":"WindSpeed-Dashboard"},"Temperature","Temperatura",null,null,null,null,null,null,null,null,{"$f":"INDEX(TT[[#This Row],[Language 1]:[Language 10]],1,LanguageSelect)","v":"Temperature"},null,null,3,"Español"]
[null,{"$f":"ROW()","v":8},"Dashboard",{"$f":"\"WindSpeed-\"&TT[[#This Row],[Tab]]","v":"WindSpeed-Dashboard"},"Beaufort Number","Número de Beaufort",null,null,null,null,null,null,null,null,{"$f":"INDEX(TT[[#This Row],[Language 1]:[Language 10]],1,LanguageSelect)","v":"Beaufort Number"},null,null,4]
[null,{"$f":"ROW()","v":9},"Dashboard",{"$f":"\"WindSpeed-\"&TT[[#This Row],[Tab]]","v":"WindSpeed-Dashboard"},"Wind speed","Velocidade do Vento",null,null,null,null,null,null,null,null,{"$f":"INDEX(TT[[#This Row],[Language 1]:[Language 10]],1,LanguageSelect)","v":"Wind speed"},null,null,5]
[null,{"$f":"ROW()","v":10},"Dashboard",{"$f":"\"WindSpeed-\"&TT[[#This Row],[Tab]]","v":"WindSpeed-Dashboard"},"Select a location to view weather conditions","Selecione uma localização para ver a condição do tempo",null,null,null,null,null,null,null,null,{"$f":"INDEX(TT[[#This Row],[Language 1]:[Language 10]],1,LanguageSelect)","v":"Select a location to view weather conditions"},null,null,6]
[null,{"$f":"ROW()","v":11},"Dashboard",{"$f":"\"WindSpeed-\"&TT[[#This Row],[Tab]]","v":"WindSpeed-Dashboard"},"Wind simulator","Simulador do vento",null,null,null,null,null,null,null,null,{"$f":"INDEX(TT[[#This Row],[Language 1]:[Language 10]],1,LanguageSelect)","v":"Wind simulator"},null,null,7]
[null,{"$f":"ROW()","v":12},"Wind Speed (Beaufort)",{"$f":"\"WindSpeed-\"&TT[[#This Row],[Tab]]","v":"WindSpeed-Wind Speed (Beaufort)"},"Beaufort Scale","Escala Beaufort",null,null,null,null,null,null,null,null,{"$f":"INDEX(TT[[#This Row],[Language 1]:[Language 10]],1,LanguageSelect)","v":"Beaufort Scale"},null,null,8]
[null,{"$f":"ROW()","v":13},"Wind Speed (Beaufort)",{"$f":"\"WindSpeed-\"&TT[[#This Row],[Tab]]","v":"WindSpeed-Wind Speed (Beaufort)"},"Current Condition","Condição Atual",null,null,null,null,null,null,null,null,{"$f":"INDEX(TT[[#This Row],[Language 1]:[Language 10]],1,LanguageSelect)","v":"Current Condition"},null,null,9]
[null,{"$f":"ROW()","v":14},"Wind Speed (Beaufort)",{"$f":"\"WindSpeed-\"&TT[[#This Row],[Tab]]","v":"WindSpeed-Wind Speed (Beaufort)"},"= 1 if Wind Speed is at least minimum on scale","= 1 se a Velocidade de Vento for pelo menos o mínimo na escala",null,null,null,null,null,null,null,null,{"$f":"INDEX(TT[[#This Row],[Language 1]:[Language 10]],1,LanguageSelect)","v":"= 1 if Wind Speed is at least minimum on scale"},null,null,10]
[null,{"$f":"ROW()","v":15},"Wind Speed (Beaufort)",{"$f":"\"WindSpeed-\"&TT[[#This Row],[Tab]]","v":"WindSpeed-Wind Speed (Beaufort)"},"Calm","Calmo",null,null,null,null,null,null,null,null,{"$f":"INDEX(TT[[#This Row],[Language 1]:[Language 10]],1,LanguageSelect)","v":"Calm"}]
[null,{"$f":"ROW()","v":16},"Wind Speed (Beaufort)",{"$f":"\"WindSpeed-\"&TT[[#This Row],[Tab]]","v":"WindSpeed-Wind Speed (Beaufort)"},"Light Air","Ar leve",null,null,null,null,null,null,null,null,{"$f":"INDEX(TT[[#This Row],[Language 1]:[Language 10]],1,LanguageSelect)","v":"Light Air"}]
[null,{"$f":"ROW()","v":17},"Wind Speed (Beaufort)",{"$f":"\"WindSpeed-\"&TT[[#This Row],[Tab]]","v":"WindSpeed-Wind Speed (Beaufort)"},"Light Breeze","Brisa leve",null,null,null,null,null,null,null,null,{"$f":"INDEX(TT[[#This Row],[Language 1]:[Language 10]],1,LanguageSelect)","v":"Light Breeze"}]
[null,{"$f":"ROW()","v":18},"Wind Speed (Beaufort)",{"$f":"\"WindSpeed-\"&TT[[#This Row],[Tab]]","v":"WindSpeed-Wind Speed (Beaufort)"},"Gentle Breeze","Brisa leve",null,null,null,null,null,null,null,null,{"$f":"INDEX(TT[[#This Row],[Language 1]:[Language 10]],1,LanguageSelect)","v":"Gentle Breeze"}]
[null,{"$f":"ROW()","v":19},"Wind Speed (Beaufort)",{"$f":"\"WindSpeed-\"&TT[[#This Row],[Tab]]","v":"WindSpeed-Wind Speed (Beaufort)"},"Moderate Breeze","Brisa moderada",null,null,null,null,null,null,null,null,{"$f":"INDEX(TT[[#This Row],[Language 1]:[Language 10]],1,LanguageSelect)","v":"Moderate Breeze"}]
[null,{"$f":"ROW()","v":20},"Wind Speed (Beaufort)",{"$f":"\"WindSpeed-\"&TT[[#This Row],[Tab]]","v":"WindSpeed-Wind Speed (Beaufort)"},"Fresh Breeze","Brisa fresca",null,null,null,null,null,null,null,null,{"$f":"INDEX(TT[[#This Row],[Language 1]:[Language 10]],1,LanguageSelect)","v":"Fresh Breeze"}]
[null,{"$f":"ROW()","v":21},"Wind Speed (Beaufort)",{"$f":"\"WindSpeed-\"&TT[[#This Row],[Tab]]","v":"WindSpeed-Wind Speed (Beaufort)"},"Strong Breeze","Brisa forte",null,null,null,null,null,null,null,null,{"$f":"INDEX(TT[[#This Row],[Language 1]:[Language 10]],1,LanguageSelect)","v":"Strong Breeze"}]
[null,{"$f":"ROW()","v":22},"Wind Speed (Beaufort)",{"$f":"\"WindSpeed-\"&TT[[#This Row],[Tab]]","v":"WindSpeed-Wind Speed (Beaufort)"},"Near Gale","Quase vendaval",null,null,null,null,null,null,null,null,{"$f":"INDEX(TT[[#This Row],[Language 1]:[Language 10]],1,LanguageSelect)","v":"Near Gale"}]
[null,{"$f":"ROW()","v":23},"Wind Speed (Beaufort)",{"$f":"\"WindSpeed-\"&TT[[#This Row],[Tab]]","v":"WindSpeed-Wind Speed (Beaufort)"},"Gale","Vendaval",null,null,null,null,null,null,null,null,{"$f":"INDEX(TT[[#This Row],[Language 1]:[Language 10]],1,LanguageSelect)","v":"Gale"}]
[null,{"$f":"ROW()","v":24},"Wind Speed (Beaufort)",{"$f":"\"WindSpeed-\"&TT[[#This Row],[Tab]]","v":"WindSpeed-Wind Speed (Beaufort)"},"Strong Gale","Vendaval forte",null,null,null,null,null,null,null,null,{"$f":"INDEX(TT[[#This Row],[Language 1]:[Language 10]],1,LanguageSelect)","v":"Strong Gale"}]
[null,{"$f":"ROW()","v":25},"Wind Speed (Beaufort)",{"$f":"\"WindSpeed-\"&TT[[#This Row],[Tab]]","v":"WindSpeed-Wind Speed (Beaufort)"},"Storm","Tempestade",null,null,null,null,null,null,null,null,{"$f":"INDEX(TT[[#This Row],[Language 1]:[Language 10]],1,LanguageSelect)","v":"Storm"}]
[null,{"$f":"ROW()","v":26},"Wind Speed (Beaufort)",{"$f":"\"WindSpeed-\"&TT[[#This Row],[Tab]]","v":"WindSpeed-Wind Speed (Beaufort)"},"Violent Storm","Tempestade violenta",null,null,null,null,null,null,null,null,{"$f":"INDEX(TT[[#This Row],[Language 1]:[Language 10]],1,LanguageSelect)","v":"Violent Storm"}]
[null,{"$f":"ROW()","v":27},"Wind Speed (Beaufort)",{"$f":"\"WindSpeed-\"&TT[[#This Row],[Tab]]","v":"WindSpeed-Wind Speed (Beaufort)"},"Hurricane Force","Força do Furacão",null,null,null,null,null,null,null,null,{"$f":"INDEX(TT[[#This Row],[Language 1]:[Language 10]],1,LanguageSelect)","v":"Hurricane Force"}]
[null,{"$f":"ROW()","v":28},"Location Data",{"$f":"\"WindSpeed-\"&TT[[#This Row],[Tab]]","v":"WindSpeed-Location Data"},"Temperature","Temperatura",null,null,null,null,null,null,null,null,{"$f":"INDEX(TT[[#This Row],[Language 1]:[Language 10]],1,LanguageSelect)","v":"Temperature"}]
[null,{"$f":"ROW()","v":29},"Location Data",{"$f":"\"WindSpeed-\"&TT[[#This Row],[Tab]]","v":"WindSpeed-Location Data"},"Wind Speed","Velocidade do Vento",null,null,null,null,null,null,null,null,{"$f":"INDEX(TT[[#This Row],[Language 1]:[Language 10]],1,LanguageSelect)","v":"Wind Speed"}]
[null,{"$f":"ROW()","v":30},"Location Data",{"$f":"\"WindSpeed-\"&TT[[#This Row],[Tab]]","v":"WindSpeed-Location Data"},"Wind Simulator","Simulador do vento",null,null,null,null,null,null,null,null,{"$f":"INDEX(TT[[#This Row],[Language 1]:[Language 10]],1,LanguageSelect)","v":"Wind Simulator"}]
[null,{"$f":"ROW()","v":31},"Location Data",{"$f":"\"WindSpeed-\"&TT[[#This Row],[Tab]]","v":"WindSpeed-Location Data"},"Local Time: ","Hora local:",null,null,null,null,null,null,null,null,{"$f":"INDEX(TT[[#This Row],[Language 1]:[Language 10]],1,LanguageSelect)","v":"Local Time: "}]
[null,{"$f":"ROW()","v":32},"Location Data",{"$f":"\"WindSpeed-\"&TT[[#This Row],[Tab]]","v":"WindSpeed-Location Data"},"Getting Data","Obtendo os Dados",null,null,null,null,null,null,null,null,{"$f":"INDEX(TT[[#This Row],[Language 1]:[Language 10]],1,LanguageSelect)","v":"Getting Data"}]
[null,{"$f":"ROW()","v":33},"Location Data",{"$f":"\"WindSpeed-\"&TT[[#This Row],[Tab]]","v":"WindSpeed-Location Data"},"My Device","Meu dispositivo",null,null,null,null,null,null,null,null,{"$f":"INDEX(TT[[#This Row],[Language 1]:[Language 10]],1,LanguageSelect)","v":"My Device"}]
[null,{"$f":"ROW()","v":34},"Location Data",{"$f":"\"WindSpeed-\"&TT[[#This Row],[Tab]]","v":"WindSpeed-Location Data"},"Seattle, USA","Seattle, EUA",null,null,null,null,null,null,null,null,{"$f":"INDEX(TT[[#This Row],[Language 1]:[Language 10]],1,LanguageSelect)","v":"Seattle, USA"}]
[null,{"$f":"ROW()","v":35},"Location Data",{"$f":"\"WindSpeed-\"&TT[[#This Row],[Tab]]","v":"WindSpeed-Location Data"},"Chicago, USA","Chicago, EUA",null,null,null,null,null,null,null,null,{"$f":"INDEX(TT[[#This Row],[Language 1]:[Language 10]],1,LanguageSelect)","v":"Chicago, USA"}]
[null,{"$f":"ROW()","v":36},"Location Data",{"$f":"\"WindSpeed-\"&TT[[#This Row],[Tab]]","v":"WindSpeed-Location Data"},"New York, USA","Nova Iorque, EUA",null,null,null,null,null,null,null,null,{"$f":"INDEX(TT[[#This Row],[Language 1]:[Language 10]],1,LanguageSelect)","v":"New York, USA"}]
[null,{"$f":"ROW()","v":37},"Location Data",{"$f":"\"WindSpeed-\"&TT[[#This Row],[Tab]]","v":"WindSpeed-Location Data"},"Paris, France","Paris, France",null,null,null,null,null,null,null,null,{"$f":"INDEX(TT[[#This Row],[Language 1]:[Language 10]],1,LanguageSelect)","v":"Paris, France"}]
[null,{"$f":"ROW()","v":38},"Location Data",{"$f":"\"WindSpeed-\"&TT[[#This Row],[Tab]]","v":"WindSpeed-Location Data"},"Seoul, South Korea","Seul, Coreia do Sul",null,null,null,null,null,null,null,null,{"$f":"INDEX(TT[[#This Row],[Language 1]:[Language 10]],1,LanguageSelect)","v":"Seoul, South Korea"}]
[null,{"$f":"ROW()","v":39},"Location Data",{"$f":"\"WindSpeed-\"&TT[[#This Row],[Tab]]","v":"WindSpeed-Location Data"},"Prague, Czech Republic","Praga República Checa",null,null,null,null,null,null,null,null,{"$f":"INDEX(TT[[#This Row],[Language 1]:[Language 10]],1,LanguageSelect)","v":"Prague, Czech Republic"}]
[null,{"$f":"ROW()","v":40},"Location Data",{"$f":"\"WindSpeed-\"&TT[[#This Row],[Tab]]","v":"WindSpeed-Location Data"},"Edinburg, Scotland","Edimburgo, Escócia",null,null,null,null,null,null,null,null,{"$f":"INDEX(TT[[#This Row],[Language 1]:[Language 10]],1,LanguageSelect)","v":"Edinburg, Scotland"}]
[null,{"$f":"ROW()","v":41},null,{"$f":"\"WindSpeed-\"&TT[[#This Row],[Tab]]","v":"WindSpeed-"},"Rio de Janeiro, Brazil","Rio de Janeiro, Brasil",null,null,null,null,null,null,null,null,{"$f":"INDEX(TT[[#This Row],[Language 1]:[Language 10]],1,LanguageSelect)","v":"Rio de Janeiro, Brazil"}]
[null,{"$f":"ROW()","v":42},"Location Data",{"$f":"\"WindSpeed-\"&TT[[#This Row],[Tab]]","v":"WindSpeed-Location Data"},"Rio Gallegos, Argentina","Rio Gallegos, Argentina.",null,null,null,null,null,null,null,null,{"$f":"INDEX(TT[[#This Row],[Language 1]:[Language 10]],1,LanguageSelect)","v":"Rio Gallegos, Argentina"}]
[null,{"$f":"ROW()","v":43},"Location Data",{"$f":"\"WindSpeed-\"&TT[[#This Row],[Tab]]","v":"WindSpeed-Location Data"},"Mount Everest","Monte Everest",null,null,null,null,null,null,null,null,{"$f":"INDEX(TT[[#This Row],[Language 1]:[Language 10]],1,LanguageSelect)","v":"Mount Everest"}]
[null,{"$f":"ROW()","v":44},"Location Data",{"$f":"\"WindSpeed-\"&TT[[#This Row],[Tab]]","v":"WindSpeed-Location Data"},"Wellington, New Zealand","Wellington, Nova Zelândia.",null,null,null,null,null,null,null,null,{"$f":"INDEX(TT[[#This Row],[Language 1]:[Language 10]],1,LanguageSelect)","v":"Wellington, New Zealand"}]
[null,{"$f":"ROW()","v":45},"TT",{"$f":"\"WindSpeed-\"&TT[[#This Row],[Tab]]","v":"WindSpeed-TT"},"Select language ","Selecionar idioma ",null,null,null,null,null,null,null,null,{"$f":"INDEX(TT[[#This Row],[Language 1]:[Language 10]],1,LanguageSelect)","v":"Select language "}]
[null,{"$f":"ROW()","v":46},null,{"$f":"\"WindSpeed-\"&TT[[#This Row],[Tab]]","v":"WindSpeed-"},"Revolutions per minute","Voltas por minuto",null,null,null,null,null,null,null,null,{"$f":"INDEX(TT[[#This Row],[Language 1]:[Language 10]],1,LanguageSelect)","v":"Revolutions per minute"}]
[null,{"$f":"ROW()","v":47},null,{"$f":"\"WindSpeed-\"&TT[[#This Row],[Tab]]","v":"WindSpeed-"},"RPM","RPM",null,null,null,null,null,null,null,null,{"$f":"INDEX(TT[[#This Row],[Language 1]:[Language 10]],1,LanguageSelect)","v":"RPM"}]
[null,{"$f":"ROW()","v":48},null,{"$f":"\"WindSpeed-\"&TT[[#This Row],[Tab]]","v":"WindSpeed-"},"Calm; smoke rises vertically","Calma; fumaça sobe verticalmente",null,null,null,null,null,null,null,null,{"$f":"INDEX(TT[[#This Row],[Language 1]:[Language 10]],1,LanguageSelect)","v":"Calm; smoke rises vertically"}]
[null,{"$f":"ROW()","v":49},null,{"$f":"\"WindSpeed-\"&TT[[#This Row],[Tab]]","v":"WindSpeed-"},"Direction of wind shown by smoke drift, but not by wind vane.","Direção do vento mostrada pela deriva de fumaça, mas não por palhetas de vento.",null,null,null,null,null,null,null,null,{"$f":"INDEX(TT[[#This Row],[Language 1]:[Language 10]],1,LanguageSelect)","v":"Direction of wind shown by smoke drift, but not by wind vane."}]
[null,{"$f":"ROW()","v":50},null,{"$f":"\"WindSpeed-\"&TT[[#This Row],[Tab]]","v":"WindSpeed-"},"Wind felt on face; leaves rustle; ordinary vanes moved.","Vento sentido no rosto; deixa farfalhar; palhetas comuns se moveram.",null,null,null,null,null,null,null,null,{"$f":"INDEX(TT[[#This Row],[Language 1]:[Language 10]],1,LanguageSelect)","v":"Wind felt on face; leaves rustle; ordinary vanes moved."}]
[null,{"$f":"ROW()","v":51},null,{"$f":"\"WindSpeed-\"&TT[[#This Row],[Tab]]","v":"WindSpeed-"},"Leaves and small twigs in constant motion, wind extends light flag.","Folhas e galhos pequenos em movimento constante, o vento estende a bandeira luminosa.",null,null,null,null,null,null,null,null,{"$f":"INDEX(TT[[#This Row],[Language 1]:[Language 10]],1,LanguageSelect)","v":"Leaves and small twigs in constant motion, wind extends light flag."}]
[null,{"$f":"ROW()","v":52},null,{"$f":"\"WindSpeed-\"&TT[[#This Row],[Tab]]","v":"WindSpeed-"},"Raises dust and loose paper, small branches are moved.","Levanta poeira e papel solto, pequenos galhos são movidos.",null,null,null,null,null,null,null,null,{"$f":"INDEX(TT[[#This Row],[Language 1]:[Language 10]],1,LanguageSelect)","v":"Raises dust and loose paper, small branches are moved."}]
[null,{"$f":"ROW()","v":53},null,{"$f":"\"WindSpeed-\"&TT[[#This Row],[Tab]]","v":"WindSpeed-"},"Small trees in leaf begin to sway; crested wavelets form on inland waters.","Pequenas árvores em folha começam a balançar; ondas de crested formam-se em águas interiores.",null,null,null,null,null,null,null,null,{"$f":"INDEX(TT[[#This Row],[Language 1]:[Language 10]],1,LanguageSelect)","v":"Small trees in leaf begin to sway; crested wavelets form on inland waters."}]
[null,{"$f":"ROW()","v":54},null,{"$f":"\"WindSpeed-\"&TT[[#This Row],[Tab]]","v":"WindSpeed-"},"Large branches in motion; whistling heard in telegraph.","Grandes ramos em movimento; assobiando ouvido no telégrafo.",null,null,null,null,null,null,null,null,{"$f":"INDEX(TT[[#This Row],[Language 1]:[Language 10]],1,LanguageSelect)","v":"Large branches in motion; whistling heard in telegraph."}]
[null,{"$f":"ROW()","v":55},null,{"$f":"\"WindSpeed-\"&TT[[#This Row],[Tab]]","v":"WindSpeed-"},"Whole trees in motion; inconvenience felt when walking.","Árvores inteiras em movimento; inconveniente sentido ao andar.",null,null,null,null,null,null,null,null,{"$f":"INDEX(TT[[#This Row],[Language 1]:[Language 10]],1,LanguageSelect)","v":"Whole trees in motion; inconvenience felt when walking."}]
[null,{"$f":"ROW()","v":56},null,{"$f":"\"WindSpeed-\"&TT[[#This Row],[Tab]]","v":"WindSpeed-"},"Breaks twigs off trees, generally impedes progress.","Quebra galhos de árvores, geralmente impede o progresso.",null,null,null,null,null,null,null,null,{"$f":"INDEX(TT[[#This Row],[Language 1]:[Language 10]],1,LanguageSelect)","v":"Breaks twigs off trees, generally impedes progress."}]
[null,{"$f":"ROW()","v":57},null,{"$f":"\"WindSpeed-\"&TT[[#This Row],[Tab]]","v":"WindSpeed-"},"Slight structural damage occurs (chimney-pots and slates removed).","Ocorre um pequeno dano estrutural (chaminés e ardósias removidas).",null,null,null,null,null,null,null,null,{"$f":"INDEX(TT[[#This Row],[Language 1]:[Language 10]],1,LanguageSelect)","v":"Slight structural damage occurs (chimney-pots and slates removed)."}]
[null,{"$f":"ROW()","v":58},null,{"$f":"\"WindSpeed-\"&TT[[#This Row],[Tab]]","v":"WindSpeed-"},"Trees uprooted; considerable damage occurs.","Árvores arrancadas; danos consideráveis ocorrem.",null,null,null,null,null,null,null,null,{"$f":"INDEX(TT[[#This Row],[Language 1]:[Language 10]],1,LanguageSelect)","v":"Trees uprooted; considerable damage occurs."}]
[null,{"$f":"ROW()","v":59},null,{"$f":"\"WindSpeed-\"&TT[[#This Row],[Tab]]","v":"WindSpeed-"},"Violent, wide-spread damage.","Danos violentos e generalizados.",null,null,null,null,null,null,null,null,{"$f":"INDEX(TT[[#This Row],[Language 1]:[Language 10]],1,LanguageSelect)","v":"Violent, wide-spread damage."}]
[null,{"$f":"ROW()","v":60},null,{"$f":"\"WindSpeed-\"&TT[[#This Row],[Tab]]","v":"WindSpeed-"},"Violent, wide-spread damage.","Danos violentos e generalizados.",null,null,null,null,null,null,null,null,{"$f":"INDEX(TT[[#This Row],[Language 1]:[Language 10]],1,LanguageSelect)","v":"Violent, wide-spread damage."}]
[null,{"$f":"ROW()","v":61},null,{"$f":"\"WindSpeed-\"&TT[[#This Row],[Tab]]","v":"WindSpeed-"},"Workbook Setup","Carteira da Pasta de Trabalho",null,null,null,null,null,null,null,null,{"$f":"INDEX(TT[[#This Row],[Language 1]:[Language 10]],1,LanguageSelect)","v":"Workbook Setup"}]
[null,{"$f":"ROW()","v":62},null,{"$f":"\"WindSpeed-\"&TT[[#This Row],[Tab]]","v":"WindSpeed-"},"Analyzing wind speed","Analisando a velocidade do vento",null,null,null,null,null,null,null,null,{"$f":"INDEX(TT[[#This Row],[Language 1]:[Language 10]],1,LanguageSelect)","v":"Analyzing wind speed"}]

{"sheet":"Dash","index":1,"n_rows":46,"n_cols":32,"rows_kept":46,"cut":false,"hidden":false,"merged":[[33,16,36,19],[44,16,45,19],[45,11,45,12],[39,25,39,27],[41,25,41,27],[43,25,43,27],[45,25,45,27],[36,25,37,27],[36,23,37,23],[39,16,43,19],[20,23,21,23],[23,23,24,23],[29,23,31,23],[33,23,34,23],[17,23,18,23],[26,23,27,23],[40,31,41,31],[43,31,45,33],[13,25,13,27],[15,25,15,27],[18,31,20,31],[14,31,15,31],[24,31,26,31],[30,31,33,31],[36,31,38,31],[20,25,21,27],[23,25,24,27],[26,25,27,27],[29,25,31,27],[33,25,34,27],[17,25,18,27],[5,31,5,33],[5,23,5,27],[5,16,5,19],[9,31,10,31],[10,23,12,27],[3,2,3,5],[3,6,3,8],[1,2,1,8],[43,3,45,8],[5,3,5,12],[7,4,7,6]]}
["v. 210714"]
[null,null,{"$f":"TT!O62","v":"Analyzing wind speed"}]
[]
[null,null,{"$f":"TT!$O$45","v":"Select language "},null,null,null,"English"]
[]
[null,null,null,{"$f":"TT!$O$10","v":"Select a location to view weather conditions"},null,null,null,null,null,null,null,null,null,null,null,null,{"$f":"TT!$O$9","v":"Wind speed"},null,null,null,null,null,null,{"$f":"TT!$O$12","v":"Beaufort Scale"},null,null,null,null,null,null,null,{"$f":"TT!$O$28","v":"Temperature"}]
[]
[null,null,null,null,"Seattle, USA",null,null,null,null,null,null,null,null,null,null,null,null,null,null,null,null,null,null,null,null,null,null,null,null,null,null,40]
[]
[null,null,null,null,null,null,null,null,null,null,null,null,null,null,null,null,null,null,null,null,null,null,null,null,null,null,null,null,null,null,null,35]
[null,null,null,null,null,null,null,null,null,null,null,null,null,null,null,null,null,null,null,null,null,null,null,{"$f":"INDEX(Tbl_Beaufort[Text],BeaufortVal+1)","v":"Wind felt on face; leaves rustle; ordinary vanes moved."}]
[]
[null,null,null,null,null,null,null,null,null,null,null,null,null,null,null,null,null,null,null,null,null,null,null,null,null,null,null,null,null,null,null,30]
[null,null,null,null,null,null,null,null,null,null,null,null,null,null,null,null,null,null,null,null,null,null,null,12,null,{"$f":"TT!$O$27","v":"Hurricane Force"}]
[null,null,null,null,null,null,null,null,null,null,null,null,null,null,null,null,null,null,null,null,null,null,null,null,null,null,null,null,null,null,null,25]
[null,null,null,null,null,null,null,null,null,null,null,null,null,null,null,null,null,null,null,null,null,null,null,11,null,{"$f":"TT!$O$26","v":"Violent Storm"}]
[null,null,null,null,null,null,null,null,null,null,null,null,null,null,null,null,null,null,null,null,null,null,null,10,null,10]
[null,null,null,null,null,null,null,null,null,null,null,null,null,null,null,null,null,null,null,null,null,null,null,10,null,{"$f":"TT!$O$25","v":"Storm"}]
[null,null,null,null,null,null,null,null,null,null,null,null,null,null,null,null,null,null,null,null,null,null,null,null,null,null,null,null,null,null,null,20]
[]
[null,null,null,null,null,null,null,null,null,null,null,null,null,null,null,null,null,null,null,null,null,null,null,9,null,{"$f":"TT!$O$24","v":"Strong Gale"}]
[]
[]
[null,null,null,null,null,null,null,null,null,null,null,null,null,null,null,null,null,null,null,null,null,null,null,8,null,{"$f":"TT!$O$23","v":"Gale"}]
[null,null,null,null,null,null,null,null,null,null,null,null,null,null,null,null,null,null,null,null,null,null,null,null,null,null,null,null,null,null,null,15]
[]
[null,null,null,null,null,null,null,null,null,null,null,null,null,null,null,null,null,null,null,null,null,null,null,7,null,{"$f":"TT!$O$22","v":"Near Gale"}]
[]
[]
[null,null,null,null,null,null,null,null,null,null,null,null,null,null,null,null,null,null,null,null,null,null,null,6,null,{"$f":"TT!$O$21","v":"Strong Breeze"}]
[null,null,null,null,null,null,null,null,null,null,null,null,null,null,null,null,null,null,null,null,null,null,null,null,null,null,null,null,null,null,null,10]
[]
[]
[null,null,null,null,null,null,null,null,null,null,null,null,null,null,null,null,{"$f":"TT!$O$46","v":"Revolutions per minute"},null,null,null,null,null,null,5,null,{"$f":"TT!$O$20","v":"Fresh Breeze"}]
[]
[]
[null,null,null,null,null,null,null,null,null,null,null,null,null,null,null,null,null,null,null,null,null,null,null,4,null,{"$f":"TT!$O$19","v":"Moderate Breeze"},null,null,null,null,null,5]
[]
[]
[null,null,null,null,null,null,null,null,null,null,null,null,null,null,null,null,{"$f":"RPM","v":178},null,null,null,null,null,null,3,null,{"$f":"TT!$O$18","v":"Gentle Breeze"}]
[null,null,null,null,null,null,null,null,null,null,null,null,null,null,null,null,null,null,null,null,null,null,null,null,null,null,null,null,null,null,null,0]
[null,null,null,null,null,null,null,null,null,null,null,null,null,null,null,null,null,null,null,null,null,null,null,2,null,{"$f":"TT!$O$17","v":"Light Breeze"}]
[]
[null,null,null,{"$f":"CityName","v":"Seattle, USA"},null,null,null,null,null,null,null,null,null,null,null,null,null,null,null,null,null,null,null,1,null,{"$f":"TT!$O$16","v":"Light Air"},null,null,null,null,null,{"$f":"TempVal_C","v":15.555555555555555}]
[null,null,null,null,null,null,null,null,null,null,null,null,null,null,null,null,{"$f":"TT!O47","v":"RPM"}]
[null,null,null,null,null,null,null,null,null,null,{"$f":"IF(WindSimToggle=1,\"☒\",\"☐\")","v":"☒"},{"$f":"TT!$O$11","v":"Wind simulator"},null,null,null,null,null,null,null,null,null,null,null,0,null,{"$f":"TT!$O$15","v":"Calm"}]

{"sheet":"Backend","index":2,"n_rows":27,"n_cols":42,"rows_kept":27,"cut":false,"hidden":true,"merged":[[17,4,44,9]]}
[null,null,null,null,null,null,5.4,3.14]
[null,null,null,null,"City","CityTranslated","X","Y","CityNum","API City Name","Type","Timestamp","Temperature","Wind Speed",null,"Row","Type","Text","ValOffset","ValEndChar","EndCharLoc","Precedent","SearchStart","Loc","Len","End","Value",null,"Beaufort num","Description","Text","Min","Max","Scale","Val",null,"Row","Val","Angle","Radians","X","Y"]
[null,"LocNum",{"$f":"IFERROR(MATCH(CitySel,Tbl_CityLookup[CityTranslated],0),1)","v":2},null,"My Device",{"$f":"TT!$O33","v":"My Device"},-1,0,{"$f":"ROW()-ROW(Tbl_CityLookup[#Headers])","v":1},"NA","Data In",{"$f":"IF(LocNum=1,\"Experiment Time: \"&TEXT('Data In'!$A$5,\"mm:ss.000\"),\"Data In value\")","v":"Data In value"},{"$f":"'Data In'!$E$5","v":0},{"$f":"'Data In'!$B$5","v":0},null,{"$f":"ROW()-ROW(Tbl_QueryParsing[#Headers])","v":1},"Text","Search",null,null,{"$f":"IF(Tbl_QueryParsing[[#This Row],[ValEndChar]]=\"\",0,SEARCH(Tbl_QueryParsing[[#This Row],[ValEndChar]],QueryResult,Tbl_QueryParsing[[#This Row],[SearchStart]]))","v":0},{"$f":"ROW()-ROW(Tbl_QueryParsing[#Headers])-1","v":0},{"$f":"IFERROR(INDEX(Tbl_QueryParsing[End],MATCH(Tbl_QueryParsing[[#This Row],[Precedent]],Tbl_QueryParsing[Row],0)),1)+Tbl_QueryParsing[[#This Row],[ValOffset]]","v":1},{"$f":"IF(Tbl_QueryParsing[[#This Row],[Type]]=\"Text\",SEARCH(Tbl_QueryParsing[[#This Row],[Text]],QueryResult,Tbl_QueryParsing[[#This Row],[SearchStart]]),Tbl_QueryParsing[[#This Row],[SearchStart]])","v":12},{"$f":"IF(Tbl_QueryParsing[[#This Row],[Type]]=\"Text\",LEN(Tbl_QueryParsing[[#This Row],[Text]]),Tbl_QueryParsing[[#This Row],[EndCharLoc]]-Tbl_QueryParsing[[#This Row],[SearchStart]])","v":6},{"$f":"Tbl_QueryParsing[[#This Row],[Loc]]+Tbl_QueryParsing[[#This Row],[Len]]","v":18},{"$f":"MID(QueryResult,Tbl_QueryParsing[[#This Row],[Loc]],Tbl_QueryParsing[[#This Row],[Len]])","v":"Search"},null,{"$f":"ROW()-ROW(Tbl_Beaufort[#Headers])-1","v":0},{"$f":"TT!$O15","v":"Calm"},{"$f":"TT!$O48","v":"Calm; smoke rises vertically"},0,1,{"$f":"IF(Tbl_Beaufort[[#This Row],[Beaufort num]]=BeaufortVal,1,NA())","v":{"$error":"#N/A"}},{"$f":"IF(AND(Tbl_Beaufort[[#This Row],[Min]]<=Wind_KPH,Tbl_Beaufort[[#This Row],[Max]]>Wind_KPH),1,NA())","v":{"$error":"#N/A"}},null,0,{"$f":"Tbl_GaugeLables[[#This Row],[Row]]*10","v":0},{"$f":"MOD(210+360-Tbl_GaugeLables[[#This Row],[Val]]*2,360)","v":210},{"$f":"RADIANS(Tbl_GaugeLables[[#This Row],[Angle]])","v":3.6651914291880923},{"$f":"COS(Tbl_GaugeLables[[#This Row],[Radians]])","v":-0.8660254037844386},{"$f":"SIN(Tbl_GaugeLables[[#This Row],[Radians]])","v":-0.50000000000000011}]
[null,"LocQueryName",{"$f":"_xlfn.SWITCH(INDEX(Tbl_CityLookup[Type],LocNum),\"Query\",INDEX(Tbl_CityLookup[API City Name],LocNum),\"NA\")","v":"Seattle"},null,"Seattle, USA",{"$f":"TT!$O34","v":"Seattle, USA"},0.48,2.5,{"$f":"ROW()-ROW(Tbl_CityLookup[#Headers])","v":2},"Seattle","Query","Query","Query","Query",null,{"$f":"ROW()-ROW(Tbl_QueryParsing[#Headers])","v":2},"Text","CurrentWeather",null,null,{"$f":"IF(Tbl_QueryParsing[[#This Row],[ValEndChar]]=\"\",0,SEARCH(Tbl_QueryParsing[[#This Row],[ValEndChar]],QueryResult,Tbl_QueryParsing[[#This Row],[SearchStart]]))","v":0},{"$f":"ROW()-ROW(Tbl_QueryParsing[#Headers])-1","v":1},{"$f":"IFERROR(INDEX(Tbl_QueryParsing[End],MATCH(Tbl_QueryParsing[[#This Row],[Precedent]],Tbl_QueryParsing[Row],0)),1)+Tbl_QueryParsing[[#This Row],[ValOffset]]","v":18},{"$f":"IF(Tbl_QueryParsing[[#This Row],[Type]]=\"Text\",SEARCH(Tbl_QueryParsing[[#This Row],[Text]],QueryResult,Tbl_QueryParsing[[#This Row],[SearchStart]]),Tbl_QueryParsing[[#This Row],[SearchStart]])","v":7276},{"$f":"IF(Tbl_QueryParsing[[#This Row],[Type]]=\"Text\",LEN(Tbl_QueryParsing[[#This Row],[Text]]),Tbl_QueryParsing[[#This Row],[EndCharLoc]]-Tbl_QueryParsing[[#This Row],[SearchStart]])","v":14},{"$f":"Tbl_QueryParsing[[#This Row],[Loc]]+Tbl_QueryParsing[[#This Row],[Len]]","v":7290},{"$f":"MID(QueryResult,Tbl_QueryParsing[[#This Row],[Loc]],Tbl_QueryParsing[[#This Row],[Len]])","v":"currentWeather"},null,{"$f":"ROW()-ROW(Tbl_Beaufort[#Headers])-1","v":1},{"$f":"TT!$O16","v":"Light Air"},{"$f":"TT!$O49","v":"Direction of wind shown by smoke drift, but not by wind vane."},1,6,{"$f":"IF(Tbl_Beaufort[[#This Row],[Beaufort num]]=BeaufortVal,1,NA())","v":{"$error":"#N/A"}},{"$f":"IF(AND(Tbl_Beaufort[[#This Row],[Min]]<=Wind_KPH,Tbl_Beaufort[[#This Row],[Max]]>Wind_KPH),1,NA())","v":{"$error":"#N/A"}},null,1,{"$f":"Tbl_GaugeLables[[#This Row],[Row]]*10","v":10},{"$f":"MOD(210+360-Tbl_GaugeLables[[#This Row],[Val]]*2,360)","v":190},{"$f":"RADIANS(Tbl_GaugeLables[[#This Row],[Angle]])","v":3.3161255787892263},{"$f":"COS(Tbl_GaugeLables[[#This Row],[Radians]])","v":-0.98480775301220802},{"$f":"SIN(Tbl_GaugeLables[[#This Row],[Radians]])","v":-0.17364817766693047}]
[null,"QueryResult",{"$f":"IF(LocQueryName=\"NA\",\"NA\",udf_GETBINGWEATHER(LocQueryName))","v":"{\"_type\": \"SearchResponse\", \"instrumentation\": {\"_type\": \"ResponseInstrumentation\", \"pingUrlBase\": \"https:\\/\\/www.bingapis.com\\/api\\/ping?IG=1CD05836E1BD4C028C4E564C2DA963E6&CID=1EE1B8411BC161A12438A8371A496058&ID=\", \"pageLoadPingUrl\": \"https:\\/\\/www.bingapis.com\\/api\\/ping\\/pageload?IG=1CD05836E1BD4C028C4E564C2DA963E6&CID=1EE1B8411BC161A12438A8371A496058&Type=Event.CPT&DATA=0\"}, \"queryContext\": {\"originalQuery\": \"Seattleresponsefilter=weather\"}, \"webPages\": {\"webSearchUrl\": \"https:\\/\\/www.bing.com\\/search?q=Seattleresponsefilter%3dweather\", \"webSearchUrlPingSuffix\": \"DevEx,5257.1\", \"totalEstimatedMatches\": 46, \"value\": [{\"id\": \"https:\\/\\/www.bingapis.com\\/api\\/v7\\/#WebPages.0\", \"name\": \"Emergency and Survival | REI Co-op\", \"url\": \"https:\\/\\/www.rei.com\\/c\\/emergency-and-survival\", \"urlPingSuffix\": \"DevEx,5078.1\", \"isFamilyFriendly\": true, \"displayUrl\": \"https:\\/\\/www.rei.com\\/c\\/emergency-and-survival\", \"snippet\": \"Shop for Emergency and Survival at REI - FREE SHIPPING With $50 minimum purchase. Curbside Pickup Available NOW! 100% Satisfaction Guarantee\", \"dateLastCrawled\": \"2021-07-14T06:09:00.0000000Z\", \"language\": \"en\", \"isNavigational\": false}, {\"id\": \"https:\\/\\/www.bingapis.com\\/api\\/v7\\/#WebPages.1\", \"name\": \"PLBs and Satellite Messengers | REI Co-op\", \"url\": \"https:\\/\\/www.rei.com\\/c\\/plbs-and-satellite-messengers\", \"urlPingSuffix\": \"DevEx,5094.1\", \"isFamilyFriendly\": true, \"displayUrl\": \"https:\\/\\/www.rei.com\\/c\\/plbs-and-satellite-messengers\", \"snippet\": \"Shop for PLBs and Satellite Messengers at REI - FREE SHIPPING With $50 minimum purchase. Curbside Pickup Available NOW! 100% Satisfaction Guarantee\", \"deepLinks\": [{\"name\": \"Garmin Inreach Mini 2-Way Satellite Communicator\", \"url\": \"https:\\/\\/www.rei.com\\/product\\/140110\\/garmin-inreach-mini\", \"urlPingSuffix\": \"DevEx,5258.1\"}, {\"name\": \"Garmin Gpsmap 66I GPS and 2-Way Satellite Communicator\", \"url\": \"https:\\/\\/www.rei.com\\/product\\/163568\\/garmin-gpsmap-66i\", \"urlPingSuffix\": \"DevEx,5259.1\"}, {\"name\": \"Spot Gen3 Satellite GPS Messenger\", \"url\": \"https:\\/\\/www.rei.com\\/product\\/860469\\/spot-gen3-satellite-gps-messenger\", \"urlPingSuffix\": \"DevEx,5260.1\"}, {\"name\": \"Garmin Inreach Explorer+ 2-Way Satellite Communicator\", \"url\": \"https:\\/\\/www.rei.com\\/product\\/119863\\/garmin-inreach-explorer\", \"urlPingSuffix\": \"DevEx,5261.1\"}, {\"name\": \"Spot X 2-Way Satellite Messenger With Bluetooth\", \"url\": \"https:\\/\\/www.rei.com\\/product\\/172306\\/spot-x-with-bluetooth\", \"urlPingSuffix\": \"DevEx,5262.1\"}], \"dateLastCrawled\": \"2021-07-12T17:58:00.0000000Z\", \"language\": \"en\", \"isNavigational\": false}, {\"id\": \"https:\\/\\/www.bingapis.com\\/api\\/v7\\/#WebPages.2\", \"name\": \"CBS News - Breaking news, 24\\/7 live streaming news & top ...\", \"url\": \"https:\\/\\/www.cbsnews.com\\/\", \"urlPingSuffix\": \"DevEx,5111.1\", \"isFamilyFriendly\": true, \"displayUrl\": \"https:\\/\\/www.cbsnews.com\", \"snippet\": \"Watch CBSN the live news stream from CBS News and get the latest, breaking news headlines of the day for national news and world news today.\", \"dateLastCrawled\": \"2021-07-14T00:42:00.0000000Z\", \"language\": \"en\", \"isNavigational\": false}, {\"id\": \"https:\\/\\/www.bingapis.com\\/api\\/v7\\/#WebPages.3\", \"name\": \"Investigation of the predictability and physical ...\", \"url\": \"https:\\/\\/agupubs.onlinelibrary.wiley.com\\/doi\\/full\\/10.1002\\/2015JD023584\", \"urlPingSuffix\": \"DevEx,5134.1\", \"isFamilyFriendly\": true, \"displayUrl\": \"https:\\/\\/agupubs.onlinelibrary.wiley.com\\/doi\\/full\\/10.1002\\/2015JD023584\", \"snippet\": \"Forecast uncertainties and physical mechanisms of a quasi-linear extreme-rain-producing mesoscale convective system (MCS) along the Meiyu front in East China, during the midnight-to-morning hours on 8 July 2007, are studied using ensembles of 24 h convection-permitting simulations with a nested grid spacing of 1.11 km.\", \"dateLastCrawled\": \"2021-07-09T12:39:00.0000000Z\", \"language\": \"en\", \"isNavigational\": false}, {\"id\": \"https:\\/\\/www.bingapis.com\\/api\\/v7\\/#WebPages.4\", \"name\": \"@facebook | Twitter\", \"url\": \"https:\\/\\/twitter.com\\/facebook\", \"urlPingSuffix\": \"DevEx,5147.1\", \"isFamilyFriendly\": true, \"displayUrl\": \"https:\\/\\/twitter.com\\/facebook\", \"snippet\": \"The latest tweets from @facebook\", \"dateLastCrawled\": \"2021-03-30T14:08:00.0000000Z\", \"language\": \"en\", \"isNavigational\": false}]}, \"entities\": {\"readLink\": \"https:\\/\\/www.bingapis.com\\/api\\/v7\\/entities\\/search?q=Seattleresponsefilter=weather\", \"queryScenario\": \"Disambiguation\", \"value\": [{\"id\": \"https:\\/\\/www.bingapis.com\\/api\\/v7\\/entities\\/0a985fc5-6c6a-ff51-ed2c-b928b1cb09d2\", \"readLink\": \"https:\\/\\/www.bingapis.com\\/api\\/v7\\/search?q=CBS+News+(Broadcast+Media)&filters=sid:%220a985fc5-6c6a-ff51-ed2c-b928b1cb09d2%22&responsefilter=entities,places\", \"readLinkPingSuffix\": \"DevEx,5263.1\", \"contractualRules\": [{\"_type\": \"ContractualRules\\/LicenseAttribution\", \"targetPropertyName\": \"description\", \"mustBeCloseToContent\": true, \"license\": {\"name\": \"CC-BY-SA\", \"url\": \"http:\\/\\/creativecommons.org\\/licenses\\/by-sa\\/3.0\\/\", \"urlPingSuffix\": \"DevEx,5267.1\"}, \"licenseNotice\": \"Text under CC-BY-SA license\"}, {\"_type\": \"ContractualRules\\/LinkAttribution\", \"targetPropertyName\": \"description\", \"mustBeCloseToContent\": true, \"text\": \"Wikipedia\", \"url\": \"http:\\/\\/en.wikipedia.org\\/wiki\\/CBS_News\", \"urlPingSuffix\": \"DevEx,5266.1\"}, {\"_type\": \"ContractualRules\\/MediaAttribution\", \"targetPropertyName\": \"image\", \"mustBeCloseToContent\": true, \"url\": \"http:\\/\\/www.cbsnews.com\\/\", \"urlPingSuffix\": \"DevEx,5265.1\"}], \"webSearchUrl\": \"https:\\/\\/www.bing.com\\/search?q=cbs+news&filters=ufn%3a%22cbs+news%22+sid%3a%220a985fc5-6c6a-ff51-ed2c-b928b1cb09d2%22&FORM=SNAPST\", \"webSearchUrlPingSuffix\": \"DevEx,5235.1\", \"name\": \"CBS News (Broadcast Media)\", \"image\": {\"name\": \"CBS News\", \"thumbnailUrl\": \"https:\\/\\/www.bing.com\\/th?id=AMMS_56a672dab9561fd2c331ce80add8ecf1&w=72&h=72&c=7&rs=1&qlt=80&cdv=1&pid=16.1\", \"provider\": [{\"_type\": \"Organization\", \"url\": \"http:\\/\\/www.cbsnews.com\\/\", \"urlPingSuffix\": \"DevEx,5265.1\"}], \"width\": 72, \"height\": 72, \"sourceWidth\": 256, \"sourceHeight\": 256}, \"description\": \"CBS News is the news division of the American television and radio service CBS. CBS News television programs include the CBS Evening News, CBS This Morning, news magazine programs CBS News Sunday Morning, 60 Minutes, and 48 Hours, and Sunday morning political affairs program Face the Nation. CBS News Radio produces hourly newscasts for hundreds of radio stations, and also oversees CBS News podcasts like The Takeout Podcast. CBS News also operates the 24-hour digital news network CBSN.\", \"entityPresentationInfo\": {\"entityScenario\": \"DisambiguationItem\", \"entityTypeHints\": [\"Organization\"], \"entityTypeDisplayHint\": \"Broadcast Media\"}}]}, \"weather\": {\"id\": \"https:\\/\\/www.bingapis.com\\/api\\/v7\\/#Weather\", \"contractualRules\": [{\"_type\": \"ContractualRules\\/LinkAttribution\", \"text\": \"Foreca\", \"url\": \"http:\\/\\/corporate.foreca.com\\/en\\/about-us\", \"urlPingSuffix\": \"DevEx,5256.1\"}], \"attributions\": [{\"provider\": {\"name\": \"Foreca\", \"url\": \"http:\\/\\/corporate.foreca.com\\/en\\/about-us\", \"urlPingSuffix\": \"DevEx,5256.1\"}}], \"location\": {\"name\": \"Seattle\", \"geo\": {\"latitude\": 47.6032, \"longitude\": -122.3303}, \"address\": {\"addressLocality\": \"Seattle\", \"addressRegion\": \"Washington\", \"addressCountry\": \"United States\"}}, \"currentWeather\": {\"image\": {\"url\": \"https:\\/\\/www.bing.com\\/th?id=OBW.v1.Cloudy\", \"thumbnailUrl\": \"https:\\/\\/www.bing.com\\/th?id=OBW.v1.Cloudy\", \"width\": 75, \"height\": 75}, \"conditionSummary\": \"Cloudy\", \"conditionDescription\": \"Cloudy\", \"temperature\": {\"value\": 60, \"unitText\": \"Fahrenheit\"}, \"precipitationChance\": 30, \"humidity\": 78, \"windSpeed\": {\"value\": 5, \"unitText\": \"MilesPerHour\"}, \"windDirection\": {\"value\": 199, \"unitText\": \"DegreesAzimuth\"}, \"date\": \"2021-07-16T00:00:00.0000000\", \"highTemperature\": {\"value\": 70, \"unitText\": \"Fahrenheit\"}, \"lowTemperature\": {\"value\": 55, \"unitText\": \"Fahrenheit\"}, \"sunrise\": \"2021-07-16T05:27:57.0000000\", \"sunset\": \"2021-07-16T21:02:16.0000000\"}, \"dailyForecast\": [{\"image\": {\"url\": \"https:\\/\\/www.bing.com\\/th?id=OBW.v1.PartlyCloudyDay\", \"thumbnailUrl\": \"https:\\/\\/www.bing.com\\/th?id=OBW.v1.PartlyCloudyDay\", \"width\": 75, \"height\": 75}, \"conditionSummary\": \"Clear\", \"conditionDescription\": \"Partly sunny\", \"precipitationChance\": 0, \"date\": \"2021-07-17T00:00:00.0000000\", \"highTemperature\": {\"value\": 74, \"unitText\": \"Fahrenheit\"}, \"lowTemperature\": {\"value\": 54, \"unitText\": \"Fahrenheit\"}}, {\"image\": {\"url\": \"https:\\/\\/www.bing.com\\/th?id=OBW.v1.SunnyDay\", \"thumbnailUrl\": \"https:\\/\\/www.bing.com\\/th?id=OBW.v1.SunnyDay\", \"width\": 75, \"height\": 75}, \"conditionSummary\": \"Sunny\", \"conditionDescription\": \"Sunny\", \"precipitationChance\": 0, \"date\": \"2021-07-18T00:00:00.0000000\", \"highTemperature\": {\"value\": 77, \"unitText\": \"Fahrenheit\"}, \"lowTemperature\": {\"value\": 55, \"unitText\": \"Fahrenheit\"}}, {\"image\": {\"url\": \"https:\\/\\/www.bing.com\\/th?id=OBW.v1.SunnyDay\", \"thumbnailUrl\": \"https:\\/\\/www.bing.com\\/th?id=OBW.v1.SunnyDay\", \"width\": 75, \"height\": 75}, \"conditionSummary\": \"Sunny\", \"conditionDescription\": \"Sunny\", \"precipitationChance\": 0, \"date\": \"2021-07-19T00:00:00.0000000\", \"highTemperature\": {\"value\": 78, \"unitText\": \"Fahrenheit\"}, \"lowTemperature\": {\"value\": 56, \"unitText\": \"Fahrenheit\"}}, {\"image\": {\"url\": \"https:\\/\\/www.bing.com\\/th?id=OBW.v1.SunnyDay\", \"thumbnailUrl\": \"https:\\/\\/www.bing.com\\/th?id=OBW.v1.SunnyDay\", \"width\": 75, \"height\": 75}, \"conditionSummary\": \"Sunny\", \"conditionDescription\": \"Sunny\", \"precipitationChance\": 0, \"date\": \"2021-07-20T00:00:00.0000000\", \"highTemperature\": {\"value\": 76, \"unitText\": \"Fahrenheit\"}, \"lowTemperature\": {\"value\": 54, \"unitText\": \"Fahrenheit\"}}, {\"image\": {\"url\": \"https:\\/\\/www.bing.com\\/th?id=OBW.v1.SunnyDay\", \"thumbnailUrl\": \"https:\\/\\/www.bing.com\\/th?id=OBW.v1.SunnyDay\", \"width\": 75, \"height\": 75}, \"conditionSummary\": \"Sunny\", \"conditionDescription\": \"Sunny\", \"precipitationChance\": 2, \"date\": \"2021-07-21T00:00:00.0000000\", \"highTemperature\": {\"value\": 73, \"unitText\": \"Fahrenheit\"}, \"lowTemperature\": {\"value\": 54, \"unitText\": \"Fahrenheit\"}}, {\"image\": {\"url\": \"https:\\/\\/www.bing.com\\/th?id=OBW.v1.SunnyDay\", \"thumbnailUrl\": \"https:\\/\\/www.bing.com\\/th?id=OBW.v1.SunnyDay\", \"width\": 75, \"height\": 75}, \"conditionSummary\": \"Sunny\", \"conditionDescription\": \"Sunny\", \"precipitationChance\": 2, \"date\": \"2021-07-22T00:00:00.0000000\", \"highTemperature\": {\"value\": 74, \"unitText\": \"Fahrenheit\"}, \"lowTemperature\": {\"value\": 56, \"unitText\": \"Fahrenheit\"}}, {\"image\": {\"url\": \"https:\\/\\/www.bing.com\\/th?id=OBW.v1.SunnyDay\", \"thumbnailUrl\": \"https:\\/\\/www.bing.com\\/th?id=OBW.v1.SunnyDay\", \"width\": 75, \"height\": 75}, \"conditionSummary\": \"Sunny\", \"conditionDescription\": \"Sunny\", \"precipitationChance\": 2, \"date\": \"2021-07-23T00:00:00.0000000\", \"highTemperature\": {\"value\": 77, \"unitText\": \"Fahrenheit\"}, \"lowTemperature\": {\"value\": 58, \"unitText\": \"Fahrenheit\"}}, {\"image\": {\"url\": \"https:\\/\\/www.bing.com\\/th?id=OBW.v1.SunnyDay\", \"thumbnailUrl\": \"https:\\/\\/www.bing.com\\/th?id=OBW.v1.SunnyDay\", \"width\": 75, \"height\": 75}, \"conditionSummary\": \"Sunny\", \"conditionDescription\": \"Sunny\", \"precipitationChance\": 3, \"date\": \"2021-07-24T00:00:00.0000000\", \"highTemperature\": {\"value\": 78, \"unitText\": \"Fahrenheit\"}, \"lowTemperature\": {\"value\": 59, \"unitText\": \"Fahrenheit\"}}, {\"image\": {\"url\": \"https:\\/\\/www.bing.com\\/th?id=OBW.v1.SunnyDay\", \"thumbnailUrl\": \"https:\\/\\/www.bing.com\\/th?id=OBW.v1.SunnyDay\", \"width\": 75, \"height\": 75}, \"conditionSummary\": \"Sunny\", \"conditionDescription\": \"Sunny\", \"precipitationChance\": 2, \"date\": \"2021-07-25T00:00:00.0000000\", \"highTemperature\": {\"value\": 75, \"unitText\": \"Fahrenheit\"}, \"lowTemperature\": {\"value\": 59, \"unitText\": \"Fahrenheit\"}}]}, \"rankingResponse\": {\"mainline\": {\"items\": [{\"answerType\": \"Weather\", \"value\": {\"id\": \"https:\\/\\/www.bingapis.com\\/api\\/v7\\/#Weather\"}}, {\"answerType\": \"WebPages\", \"resultIndex\": 0, \"value\": {\"id\": \"https:\\/\\/www.bingapis.com\\/api\\/v7\\/#WebPages.0\"}}, {\"answerType\": \"WebPages\", \"resultIndex\": 1, \"value\": {\"id\": \"https:\\/\\/www.bingapis.com\\/api\\/v7\\/#WebPages.1\"}}, {\"answerType\": \"WebPages\", \"resultIndex\": 2, \"value\": {\"id\": \"https:\\/\\/www.bingapis.com\\/api\\/v7\\/#WebPages.2\"}}, {\"answerType\": \"WebPages\", \"resultIndex\": 3, \"value\": {\"id\": \"https:\\/\\/www.bingapis.com\\/api\\/v7\\/#WebPages.3\"}}, {\"answerType\": \"WebPages\", \"resultIndex\": 4, \"value\": {\"id\": \"https:\\/\\/www.bingapis.com\\/api\\/v7\\/#WebPages.4\"}}, {\"answerType\": \"BingGlobal\"}]}, \"sidebar\": {\"items\": [{\"answerType\": \"Entities\", \"resultIndex\": 0, \"value\": {\"id\": \"https:\\/\\/www.bingapis.com\\/api\\/v7\\/entities\\/0a985fc5-6c6a-ff51-ed2c-b928b1cb09d2\"}}]}, \"pagination\": {\"items\": [{\"answerType\": \"Pagination\", \"value\": {\"id\": \"https:\\/\\/www.bingapis.com\\/api\\/v7\\/#Pagination\"}}]}}, \"pagination\": {\"id\": \"https:\\/\\/www.bingapis.com\\/api\\/v7\\/#Pagination\", \"currentPageNumber\": 1, \"nextPage\": {\"pageNumber\": 2, \"offset\": 5}, \"paginationLinks\": [{\"pageNumber\": 1, \"offset\": 0}, {\"pageNumber\": 2, \"offset\": 5}, {\"pageNumber\": 3, \"offset\": 15}, {\"pageNumber\": 4, \"offset\": 25}, {\"pageNumber\": 5, \"offset\": 35}]}}"},null,"Chicago, USA",{"$f":"TT!$O35","v":"Chicago, USA"},1,2.4,{"$f":"ROW()-ROW(Tbl_CityLookup[#Headers])","v":3},"Chicago","Query","Query","Query","Query",null,{"$f":"ROW()-ROW(Tbl_QueryParsing[#Headers])","v":3},"Text","Temperature",null,null,{"$f":"IF(Tbl_QueryParsing[[#This Row],[ValEndChar]]=\"\",0,SEARCH(Tbl_QueryParsing[[#This Row],[ValEndChar]],QueryResult,Tbl_QueryParsing[[#This Row],[SearchStart]]))","v":0},{"$f":"ROW()-ROW(Tbl_QueryParsing[#Headers])-1","v":2},{"$f":"IFERROR(INDEX(Tbl_QueryParsing[End],MATCH(Tbl_QueryParsing[[#This Row],[Precedent]],Tbl_QueryParsing[Row],0)),1)+Tbl_QueryParsing[[#This Row],[ValOffset]]","v":7290},{"$f":"IF(Tbl_QueryParsing[[#This Row],[Type]]=\"Text\",SEARCH(Tbl_QueryParsing[[#This Row],[Text]],QueryResult,Tbl_QueryParsing[[#This Row],[SearchStart]]),Tbl_QueryParsing[[#This Row],[SearchStart]])","v":7514},{"$f":"IF(Tbl_QueryParsing[[#This Row],[Type]]=\"Text\",LEN(Tbl_QueryParsing[[#This Row],[Text]]),Tbl_QueryParsing[[#This Row],[EndCharLoc]]-Tbl_QueryParsing[[#This Row],[SearchStart]])","v":11},{"$f":"Tbl_QueryParsing[[#This Row],[Loc]]+Tbl_QueryParsing[[#This Row],[Len]]","v":7525},{"$f":"MID(QueryResult,Tbl_QueryParsing[[#This Row],[Loc]],Tbl_QueryParsing[[#This Row],[Len]])","v":"temperature"},null,{"$f":"ROW()-ROW(Tbl_Beaufort[#Headers])-1","v":2},{"$f":"TT!$O17","v":"Light Breeze"},{"$f":"TT!$O50","v":"Wind felt on face; leaves rustle; ordinary vanes moved."},6,12,{"$f":"IF(Tbl_Beaufort[[#This Row],[Beaufort num]]=BeaufortVal,1,NA())","v":1},{"$f":"IF(AND(Tbl_Beaufort[[#This Row],[Min]]<=Wind_KPH,Tbl_Beaufort[[#This Row],[Max]]>Wind_KPH),1,NA())","v":1},null,2,{"$f":"Tbl_GaugeLables[[#This Row],[Row]]*10","v":20},{"$f":"MOD(210+360-Tbl_GaugeLables[[#This Row],[Val]]*2,360)","v":170},{"$f":"RADIANS(Tbl_GaugeLables[[#This Row],[Angle]])","v":2.9670597283903604},{"$f":"COS(Tbl_GaugeLables[[#This Row],[Radians]])","v":-0.98480775301220802},{"$f":"SIN(Tbl_GaugeLables[[#This Row],[Radians]])","v":0.17364817766693028}]
[null,"TempVal_F",{"$f":"IF(QueryResult=\"NA\",INDEX(Tbl_CityLookup[Temperature],LocNum)*1.8+32,VALUE(INDEX(Tbl_QueryParsing[Value],MATCH(B6,Tbl_QueryParsing[Text],0))))","v":60},null,"New York, USA",{"$f":"TT!$O36","v":"New York, USA"},1.24,2.35,{"$f":"ROW()-ROW(Tbl_CityLookup[#Headers])","v":4},"New York, USA","Query","Query","Query","Query",null,{"$f":"ROW()-ROW(Tbl_QueryParsing[#Headers])","v":4},"Text","Value",null,null,{"$f":"IF(Tbl_QueryParsing[[#This Row],[ValEndChar]]=\"\",0,SEARCH(Tbl_QueryParsing[[#This Row],[ValEndChar]],QueryResult,Tbl_QueryParsing[[#This Row],[SearchStart]]))","v":0},{"$f":"ROW()-ROW(Tbl_QueryParsing[#Headers])-1","v":3},{"$f":"IFERROR(INDEX(Tbl_QueryParsing[End],MATCH(Tbl_QueryParsing[[#This Row],[Precedent]],Tbl_QueryParsing[Row],0)),1)+Tbl_QueryParsing[[#This Row],[ValOffset]]","v":7525},{"$f":"IF(Tbl_QueryParsing[[#This Row],[Type]]=\"Text\",SEARCH(Tbl_QueryParsing[[#This Row],[Text]],QueryResult,Tbl_QueryParsing[[#This Row],[SearchStart]]),Tbl_QueryParsing[[#This Row],[SearchStart]])","v":7530},{"$f":"IF(Tbl_QueryParsing[[#This Row],[Type]]=\"Text\",LEN(Tbl_QueryParsing[[#This Row],[Text]]),Tbl_QueryParsing[[#This Row],[EndCharLoc]]-Tbl_QueryParsing[[#This Row],[SearchStart]])","v":5},{"$f":"Tbl_QueryParsing[[#This Row],[Loc]]+Tbl_QueryParsing[[#This Row],[Len]]","v":7535},{"$f":"MID(QueryResult,Tbl_QueryParsing[[#This Row],[Loc]],Tbl_QueryParsing[[#This Row],[Len]])","v":"value"},null,{"$f":"ROW()-ROW(Tbl_Beaufort[#Headers])-1","v":3},{"$f":"TT!$O18","v":"Gentle Breeze"},{"$f":"TT!$O51","v":"Leaves and small twigs in constant motion, wind extends light flag."},12,20,{"$f":"IF(Tbl_Beaufort[[#This Row],[Beaufort num]]=BeaufortVal,1,NA())","v":{"$error":"#N/A"}},{"$f":"IF(AND(Tbl_Beaufort[[#This Row],[Min]]<=Wind_KPH,Tbl_Beaufort[[#This Row],[Max]]>Wind_KPH),1,NA())","v":{"$error":"#N/A"}},null,3,{"$f":"Tbl_GaugeLables[[#This Row],[Row]]*10","v":30},{"$f":"MOD(210+360-Tbl_GaugeLables[[#This Row],[Val]]*2,360)","v":150},{"$f":"RADIANS(Tbl_GaugeLables[[#This Row],[Angle]])","v":2.6179938779914944},{"$f":"COS(Tbl_GaugeLables[[#This Row],[Radians]])","v":-0.86602540378443871},{"$f":"SIN(Tbl_GaugeLables[[#This Row],[Radians]])","v":0.49999999999999994}]
[null,"TempVal_C",{"$f":"(TempVal_F-32)*5/9","v":15.555555555555555},null,"Paris, France",{"$f":"TT!$O37","v":"Paris, France"},2.48,2.4700000000000002,{"$f":"ROW()-ROW(Tbl_CityLookup[#Headers])","v":5},"Paris, FR","Query","Query","Query","Query",null,{"$f":"ROW()-ROW(Tbl_QueryParsing[#Headers])","v":5},"Value","TempVal_F",3,",",{"$f":"IF(Tbl_QueryParsing[[#This Row],[ValEndChar]]=\"\",0,SEARCH(Tbl_QueryParsing[[#This Row],[ValEndChar]],QueryResult,Tbl_QueryParsing[[#This Row],[SearchStart]]))","v":7540},{"$f":"ROW()-ROW(Tbl_QueryParsing[#Headers])-1","v":4},{"$f":"IFERROR(INDEX(Tbl_QueryParsing[End],MATCH(Tbl_QueryParsing[[#This Row],[Precedent]],Tbl_QueryParsing[Row],0)),1)+Tbl_QueryParsing[[#This Row],[ValOffset]]","v":7538},{"$f":"IF(Tbl_QueryParsing[[#This Row],[Type]]=\"Text\",SEARCH(Tbl_QueryParsing[[#This Row],[Text]],QueryResult,Tbl_QueryParsing[[#This Row],[SearchStart]]),Tbl_QueryParsing[[#This Row],[SearchStart]])","v":7538},{"$f":"IF(Tbl_QueryParsing[[#This Row],[Type]]=\"Text\",LEN(Tbl_QueryParsing[[#This Row],[Text]]),Tbl_QueryParsing[[#This Row],[EndCharLoc]]-Tbl_QueryParsing[[#This Row],[SearchStart]])","v":2},{"$f":"Tbl_QueryParsing[[#This Row],[Loc]]+Tbl_QueryParsing[[#This Row],[Len]]","v":7540},{"$f":"MID(QueryResult,Tbl_QueryParsing[[#This Row],[Loc]],Tbl_QueryParsing[[#This Row],[Len]])","v":"60"},null,{"$f":"ROW()-ROW(Tbl_Beaufort[#Headers])-1","v":4},{"$f":"TT!$O19","v":"Moderate Breeze"},{"$f":"TT!$O52","v":"Raises dust and loose paper, small branches are moved."},20,29,{"$f":"IF(Tbl_Beaufort[[#This Row],[Beaufort num]]=BeaufortVal,1,NA())","v":{"$error":"#N/A"}},{"$f":"IF(AND(Tbl_Beaufort[[#This Row],[Min]]<=Wind_KPH,Tbl_Beaufort[[#This Row],[Max]]>Wind_KPH),1,NA())","v":{"$error":"#N/A"}},null,4,{"$f":"Tbl_GaugeLables[[#This Row],[Row]]*10","v":40},{"$f":"MOD(210+360-Tbl_GaugeLables[[#This Row],[Val]]*2,360)","v":130},{"$f":"RADIANS(Tbl_GaugeLables[[#This Row],[Angle]])","v":2.2689280275926285},{"$f":"COS(Tbl_GaugeLables[[#This Row],[Radians]])","v":-0.64278760968653936},{"$f":"SIN(Tbl_GaugeLables[[#This Row],[Radians]])","v":0.76604444311897801}]
[null,"MaxTemp",40,null,"Seoul, South Korea",{"$f":"TT!$O38","v":"Seoul, South Korea"},4.6500000000000004,2.25,{"$f":"ROW()-ROW(Tbl_CityLookup[#Headers])","v":6},"Seoul","Query","Query","Query","Query",null,{"$f":"ROW()-ROW(Tbl_QueryParsing[#Headers])","v":6},"Text","Windspeed",null,null,{"$f":"IF(Tbl_QueryParsing[[#This Row],[ValEndChar]]=\"\",0,SEARCH(Tbl_QueryParsing[[#This Row],[ValEndChar]],QueryResult,Tbl_QueryParsing[[#This Row],[SearchStart]]))","v":0},{"$f":"ROW()-ROW(Tbl_QueryParsing[#Headers])-1","v":5},{"$f":"IFERROR(INDEX(Tbl_QueryParsing[End],MATCH(Tbl_QueryParsing[[#This Row],[Precedent]],Tbl_QueryParsing[Row],0)),1)+Tbl_QueryParsing[[#This Row],[ValOffset]]","v":7540},{"$f":"IF(Tbl_QueryParsing[[#This Row],[Type]]=\"Text\",SEARCH(Tbl_QueryParsing[[#This Row],[Text]],QueryResult,Tbl_QueryParsing[[#This Row],[SearchStart]]),Tbl_QueryParsing[[#This Row],[SearchStart]])","v":7613},{"$f":"IF(Tbl_QueryParsing[[#This Row],[Type]]=\"Text\",LEN(Tbl_QueryParsing[[#This Row],[Text]]),Tbl_QueryParsing[[#This Row],[EndCharLoc]]-Tbl_QueryParsing[[#This Row],[SearchStart]])","v":9},{"$f":"Tbl_QueryParsing[[#This Row],[Loc]]+Tbl_QueryParsing[[#This Row],[Len]]","v":7622},{"$f":"MID(QueryResult,Tbl_QueryParsing[[#This Row],[Loc]],Tbl_QueryParsing[[#This Row],[Len]])","v":"windSpeed"},null,{"$f":"ROW()-ROW(Tbl_Beaufort[#Headers])-1","v":5},{"$f":"TT!$O20","v":"Fresh Breeze"},{"$f":"TT!$O53","v":"Small trees in leaf begin to sway; crested wavelets form on inland waters."},29,39,{"$f":"IF(Tbl_Beaufort[[#This Row],[Beaufort num]]=BeaufortVal,1,NA())","v":{"$error":"#N/A"}},{"$f":"IF(AND(Tbl_Beaufort[[#This Row],[Min]]<=Wind_KPH,Tbl_Beaufort[[#This Row],[Max]]>Wind_KPH),1,NA())","v":{"$error":"#N/A"}},null,5,{"$f":"Tbl_GaugeLables[[#This Row],[Row]]*10","v":50},{"$f":"MOD(210+360-Tbl_GaugeLables[[#This Row],[Val]]*2,360)","v":110},{"$f":"RADIANS(Tbl_GaugeLables[[#This Row],[Angle]])","v":1.9198621771937625},{"$f":"COS(Tbl_GaugeLables[[#This Row],[Radians]])","v":-0.34202014332566871},{"$f":"SIN(Tbl_GaugeLables[[#This Row],[Radians]])","v":0.93969262078590843}]
[null,"Wind_MPH",{"$f":"IF(QueryResult=\"NA\",INDEX(Tbl_CityLookup[Wind Speed],LocNum)/1.609344,VALUE(INDEX(Tbl_QueryParsing[Value],MATCH(B9,Tbl_QueryParsing[Text],0))))","v":5},null,"Prague, Czech Republic",{"$f":"TT!$O39","v":"Prague, Czech Republic"},2.67,2.5099999999999998,{"$f":"ROW()-ROW(Tbl_CityLookup[#Headers])","v":7},"Prague, CZ","Query","Query","Query","Query",null,{"$f":"ROW()-ROW(Tbl_QueryParsing[#Headers])","v":7},"Text","Value",null,null,{"$f":"IF(Tbl_QueryParsing[[#This Row],[ValEndChar]]=\"\",0,SEARCH(Tbl_QueryParsing[[#This Row],[ValEndChar]],QueryResult,Tbl_QueryParsing[[#This Row],[SearchStart]]))","v":0},{"$f":"ROW()-ROW(Tbl_QueryParsing[#Headers])-1","v":6},{"$f":"IFERROR(INDEX(Tbl_QueryParsing[End],MATCH(Tbl_QueryParsing[[#This Row],[Precedent]],Tbl_QueryParsing[Row],0)),1)+Tbl_QueryParsing[[#This Row],[ValOffset]]","v":7622},{"$f":"IF(Tbl_QueryParsing[[#This Row],[Type]]=\"Text\",SEARCH(Tbl_QueryParsing[[#This Row],[Text]],QueryResult,Tbl_QueryParsing[[#This Row],[SearchStart]]),Tbl_QueryParsing[[#This Row],[SearchStart]])","v":7627},{"$f":"IF(Tbl_QueryParsing[[#This Row],[Type]]=\"Text\",LEN(Tbl_QueryParsing[[#This Row],[Text]]),Tbl_QueryParsing[[#This Row],[EndCharLoc]]-Tbl_QueryParsing[[#This Row],[SearchStart]])","v":5},{"$f":"Tbl_QueryParsing[[#This Row],[Loc]]+Tbl_QueryParsing[[#This Row],[Len]]","v":7632},{"$f":"MID(QueryResult,Tbl_QueryParsing[[#This Row],[Loc]],Tbl_QueryParsing[[#This Row],[Len]])","v":"value"},null,{"$f":"ROW()-ROW(Tbl_Beaufort[#Headers])-1","v":6},{"$f":"TT!$O21","v":"Strong Breeze"},{"$f":"TT!$O54","v":"Large branches in motion; whistling heard in telegraph."},39,50,{"$f":"IF(Tbl_Beaufort[[#This Row],[Beaufort num]]=BeaufortVal,1,NA())","v":{"$error":"#N/A"}},{"$f":"IF(AND(Tbl_Beaufort[[#This Row],[Min]]<=Wind_KPH,Tbl_Beaufort[[#This Row],[Max]]>Wind_KPH),1,NA())","v":{"$error":"#N/A"}},null,6,{"$f":"Tbl_GaugeLables[[#This Row],[Row]]*10","v":60},{"$f":"MOD(210+360-Tbl_GaugeLables[[#This Row],[Val]]*2,360)","v":90},{"$f":"RADIANS(Tbl_GaugeLables[[#This Row],[Angle]])","v":1.5707963267948966},{"$f":"COS(Tbl_GaugeLables[[#This Row],[Radians]])","v":6.1257422745431001E-17},{"$f":"SIN(Tbl_GaugeLables[[#This Row],[Radians]])","v":1}]
[null,"Wind_KPH",{"$f":"MIN(Wind_MPH*1.609344,999)","v":8.0467200000000005},null,"Edinburg, Scotland",{"$f":"TT!$O40","v":"Edinburg, Scotland"},2.42,2.63,{"$f":"ROW()-ROW(Tbl_CityLookup[#Headers])","v":8},"Edinburg, UK","Query","Query","Query","Query",null,{"$f":"ROW()-ROW(Tbl_QueryParsing[#Headers])","v":8},"Value","Wind_MPH",3,",",{"$f":"IF(Tbl_QueryParsing[[#This Row],[ValEndChar]]=\"\",0,SEARCH(Tbl_QueryParsing[[#This Row],[ValEndChar]],QueryResult,Tbl_QueryParsing[[#This Row],[SearchStart]]))","v":7636},{"$f":"ROW()-ROW(Tbl_QueryParsing[#Headers])-1","v":7},{"$f":"IFERROR(INDEX(Tbl_QueryParsing[End],MATCH(Tbl_QueryParsing[[#This Row],[Precedent]],Tbl_QueryParsing[Row],0)),1)+Tbl_QueryParsing[[#This Row],[ValOffset]]","v":7635},{"$f":"IF(Tbl_QueryParsing[[#This Row],[Type]]=\"Text\",SEARCH(Tbl_QueryParsing[[#This Row],[Text]],QueryResult,Tbl_QueryParsing[[#This Row],[SearchStart]]),Tbl_QueryParsing[[#This Row],[SearchStart]])","v":7635},{"$f":"IF(Tbl_QueryParsing[[#This Row],[Type]]=\"Text\",LEN(Tbl_QueryParsing[[#This Row],[Text]]),Tbl_QueryParsing[[#This Row],[EndCharLoc]]-Tbl_QueryParsing[[#This Row],[SearchStart]])","v":1},{"$f":"Tbl_QueryParsing[[#This Row],[Loc]]+Tbl_QueryParsing[[#This Row],[Len]]","v":7636},{"$f":"MID(QueryResult,Tbl_QueryParsing[[#This Row],[Loc]],Tbl_QueryParsing[[#This Row],[Len]])","v":"5"},null,{"$f":"ROW()-ROW(Tbl_Beaufort[#Headers])-1","v":7},{"$f":"TT!$O22","v":"Near Gale"},{"$f":"TT!$O55","v":"Whole trees in motion; inconvenience felt when walking."},50,62,{"$f":"IF(Tbl_Beaufort[[#This Row],[Beaufort num]]=BeaufortVal,1,NA())","v":{"$error":"#N/A"}},{"$f":"IF(AND(Tbl_Beaufort[[#This Row],[Min]]<=Wind_KPH,Tbl_Beaufort[[#This Row],[Max]]>Wind_KPH),1,NA())","v":{"$error":"#N/A"}},null,7,{"$f":"Tbl_GaugeLables[[#This Row],[Row]]*10","v":70},{"$f":"MOD(210+360-Tbl_GaugeLables[[#This Row],[Val]]*2,360)","v":70},{"$f":"RADIANS(Tbl_GaugeLables[[#This Row],[Angle]])","v":1.2217304763960306},{"$f":"COS(Tbl_GaugeLables[[#This Row],[Radians]])","v":0.34202014332566882},{"$f":"SIN(Tbl_GaugeLables[[#This Row],[Radians]])","v":0.93969262078590832}]
[null,"Timestamp",{"$f":"NOW()","v":"2021-07-16T20:54:55.180"},null,"Rio de Janeiro, Brazil",{"$f":"TT!$O41","v":"Rio de Janeiro, Brazil"},1.7,1.1299999999999999,{"$f":"ROW()-ROW(Tbl_CityLookup[#Headers])","v":9},"Araruama, Brazil","Query","Query","Query","Query",null,null,null,null,null,null,null,null,null,null,null,null,null,null,{"$f":"ROW()-ROW(Tbl_Beaufort[#Headers])-1","v":8},{"$f":"TT!$O23","v":"Gale"},{"$f":"TT!$O56","v":"Breaks twigs off trees, generally impedes progress."},62,75,{"$f":"IF(Tbl_Beaufort[[#This Row],[Beaufort num]]=BeaufortVal,1,NA())","v":{"$error":"#N/A"}},{"$f":"IF(AND(Tbl_Beaufort[[#This Row],[Min]]<=Wind_KPH,Tbl_Beaufort[[#This Row],[Max]]>Wind_KPH),1,NA())","v":{"$error":"#N/A"}},null,8,{"$f":"Tbl_GaugeLables[[#This Row],[Row]]*10","v":80},{"$f":"MOD(210+360-Tbl_GaugeLables[[#This Row],[Val]]*2,360)","v":50},{"$f":"RADIANS(Tbl_GaugeLables[[#This Row],[Angle]])","v":0.87266462599716477},{"$f":"COS(Tbl_GaugeLables[[#This Row],[Radians]])","v":0.64278760968653936},{"$f":"SIN(Tbl_GaugeLables[[#This Row],[Radians]])","v":0.76604444311897801}]
[null,null,null,null,"Rio Gallegos, Argentina",{"$f":"TT!$O42","v":"Rio Gallegos, Argentina"},1.38,0.7,{"$f":"ROW()-ROW(Tbl_CityLookup[#Headers])","v":10},"NA","Flat","Local Time: n/a (Average Conditions)",7.6384615384615371,25.748999999999999,null,null,null,null,null,null,null,null,null,null,null,null,null,null,{"$f":"ROW()-ROW(Tbl_Beaufort[#Headers])-1","v":9},{"$f":"TT!$O24","v":"Strong Gale"},{"$f":"TT!$O57","v":"Slight structural damage occurs (chimney-pots and slates removed)."},75,89,{"$f":"IF(Tbl_Beaufort[[#This Row],[Beaufort num]]=BeaufortVal,1,NA())","v":{"$error":"#N/A"}},{"$f":"IF(AND(Tbl_Beaufort[[#This Row],[Min]]<=Wind_KPH,Tbl_Beaufort[[#This Row],[Max]]>Wind_KPH),1,NA())","v":{"$error":"#N/A"}},null,9,{"$f":"Tbl_GaugeLables[[#This Row],[Row]]*10","v":90},{"$f":"MOD(210+360-Tbl_GaugeLables[[#This Row],[Val]]*2,360)","v":30},{"$f":"RADIANS(Tbl_GaugeLables[[#This Row],[Angle]])","v":0.52359877559829882},{"$f":"COS(Tbl_GaugeLables[[#This Row],[Radians]])","v":0.86602540378443871},{"$f":"SIN(Tbl_GaugeLables[[#This Row],[Radians]])","v":0.49999999999999994}]
[null,"Anenometer Diameter (cm)",24,null,"Mount Everest",{"$f":"TT!$O43","v":"Mount Everest"},3.98,2.11,{"$f":"ROW()-ROW(Tbl_CityLookup[#Headers])","v":11},"NA","Flat","Local Time: n/a (Average Conditions)",-26,46.1,null,null,null,null,null,null,null,null,null,null,null,null,null,null,{"$f":"ROW()-ROW(Tbl_Beaufort[#Headers])-1","v":10},{"$f":"TT!$O25","v":"Storm"},{"$f":"TT!$O58","v":"Trees uprooted; considerable damage occurs."},89,103,{"$f":"IF(Tbl_Beaufort[[#This Row],[Beaufort num]]=BeaufortVal,1,NA())","v":{"$error":"#N/A"}},{"$f":"IF(AND(Tbl_Beaufort[[#This Row],[Min]]<=Wind_KPH,Tbl_Beaufort[[#This Row],[Max]]>Wind_KPH),1,NA())","v":{"$error":"#N/A"}},null,10,{"$f":"Tbl_GaugeLables[[#This Row],[Row]]*10","v":100},{"$f":"MOD(210+360-Tbl_GaugeLables[[#This Row],[Val]]*2,360)","v":10},{"$f":"RADIANS(Tbl_GaugeLables[[#This Row],[Angle]])","v":0.17453292519943295},{"$f":"COS(Tbl_GaugeLables[[#This Row],[Radians]])","v":0.98480775301220802},{"$f":"SIN(Tbl_GaugeLables[[#This Row],[Radians]])","v":0.17364817766693033}]
[null,"Anemometer Circumference (cm)",{"$f":"Device_d*PI()","v":75.398223686155035},null,"Wellington, New Zealand",{"$f":"TT!$O44","v":"Wellington, New Zealand"},5.26,0.72,{"$f":"ROW()-ROW(Tbl_CityLookup[#Headers])","v":12},"NA","Flat","Local Time: n/a (Average Conditions)",12.66923076923077,28.968,null,null,null,null,null,null,null,null,null,null,null,null,null,null,{"$f":"ROW()-ROW(Tbl_Beaufort[#Headers])-1","v":11},{"$f":"TT!$O26","v":"Violent Storm"},{"$f":"TT!$O59","v":"Violent, wide-spread damage."},103,118,{"$f":"IF(Tbl_Beaufort[[#This Row],[Beaufort num]]=BeaufortVal,1,NA())","v":{"$error":"#N/A"}},{"$f":"IF(AND(Tbl_Beaufort[[#This Row],[Min]]<=Wind_KPH,Tbl_Beaufort[[#This Row],[Max]]>Wind_KPH),1,NA())","v":{"$error":"#N/A"}},null,11,{"$f":"Tbl_GaugeLables[[#This Row],[Row]]*10","v":110},{"$f":"MOD(210+360-Tbl_GaugeLables[[#This Row],[Val]]*2,360)","v":350},{"$f":"RADIANS(Tbl_GaugeLables[[#This Row],[Angle]])","v":6.1086523819801535},{"$f":"COS(Tbl_GaugeLables[[#This Row],[Radians]])","v":0.98480775301220802},{"$f":"SIN(Tbl_GaugeLables[[#This Row],[Radians]])","v":-0.17364817766693039}]
[null,"Wind_cmPMin",{"$f":"Wind_KPH*100000/60","v":13411.2},null,null,null,null,null,null,null,null,null,null,null,null,null,null,null,null,null,null,null,null,null,null,null,null,null,{"$f":"ROW()-ROW(Tbl_Beaufort[#Headers])-1","v":12},{"$f":"TT!$O27","v":"Hurricane Force"},{"$f":"TT!$O60","v":"Violent, wide-spread damage."},118,999.99900000000002,{"$f":"IF(Tbl_Beaufort[[#This Row],[Beaufort num]]=BeaufortVal,1,NA())","v":{"$error":"#N/A"}},{"$f":"IF(AND(Tbl_Beaufort[[#This Row],[Min]]<=Wind_KPH,Tbl_Beaufort[[#This Row],[Max]]>Wind_KPH),1,NA())","v":{"$error":"#N/A"}},null,12,{"$f":"Tbl_GaugeLables[[#This Row],[Row]]*10","v":120},{"$f":"MOD(210+360-Tbl_GaugeLables[[#This Row],[Val]]*2,360)","v":330},{"$f":"RADIANS(Tbl_GaugeLables[[#This Row],[Angle]])","v":5.7595865315812871},{"$f":"COS(Tbl_GaugeLables[[#This Row],[Radians]])","v":0.86602540378443837},{"$f":"SIN(Tbl_GaugeLables[[#This Row],[Radians]])","v":-0.50000000000000044}]
[null,"RPM",{"$f":"ROUND(Wind_cmPMin/Device_c,0)","v":178}]
[null,"BeaufortVal",{"$f":"IFERROR(MATCH(1,Tbl_Beaufort[Val],0),1)-1","v":2}]
[null,"BeaufortDesc",{"$f":"INDEX(Tbl_Beaufort[Description],BeaufortVal+1)","v":"Light Breeze"},null,{"$f":"QueryResult","v":"{\"_type\": \"SearchResponse\", \"instrumentation\": {\"_type\": \"ResponseInstrumentation\", \"pingUrlBase\": \"https:\\/\\/www.bingapis.com\\/api\\/ping?IG=1CD05836E1BD4C028C4E564C2DA963E6&CID=1EE1B8411BC161A12438A8371A496058&ID=\", \"pageLoadPingUrl\": \"https:\\/\\/www.bingapis.com\\/api\\/ping\\/pageload?IG=1CD05836E1BD4C028C4E564C2DA963E6&CID=1EE1B8411BC161A12438A8371A496058&Type=Event.CPT&DATA=0\"}, \"queryContext\": {\"originalQuery\": \"Seattleresponsefilter=weather\"}, \"webPages\": {\"webSearchUrl\": \"https:\\/\\/www.bing.com\\/search?q=Seattleresponsefilter%3dweather\", \"webSearchUrlPingSuffix\": \"DevEx,5257.1\", \"totalEstimatedMatches\": 46, \"value\": [{\"id\": \"https:\\/\\/www.bingapis.com\\/api\\/v7\\/#WebPages.0\", \"name\": \"Emergency and Survival | REI Co-op\", \"url\": \"https:\\/\\/www.rei.com\\/c\\/emergency-and-survival\", \"urlPingSuffix\": \"DevEx,5078.1\", \"isFamilyFriendly\": true, \"displayUrl\": \"https:\\/\\/www.rei.com\\/c\\/emergency-and-survival\", \"snippet\": \"Shop for Emergency and Survival at REI - FREE SHIPPING With $50 minimum purchase. Curbside Pickup Available NOW! 100% Satisfaction Guarantee\", \"dateLastCrawled\": \"2021-07-14T06:09:00.0000000Z\", \"language\": \"en\", \"isNavigational\": false}, {\"id\": \"https:\\/\\/www.bingapis.com\\/api\\/v7\\/#WebPages.1\", \"name\": \"PLBs and Satellite Messengers | REI Co-op\", \"url\": \"https:\\/\\/www.rei.com\\/c\\/plbs-and-satellite-messengers\", \"urlPingSuffix\": \"DevEx,5094.1\", \"isFamilyFriendly\": true, \"displayUrl\": \"https:\\/\\/www.rei.com\\/c\\/plbs-and-satellite-messengers\", \"snippet\": \"Shop for PLBs and Satellite Messengers at REI - FREE SHIPPING With $50 minimum purchase. Curbside Pickup Available NOW! 100% Satisfaction Guarantee\", \"deepLinks\": [{\"name\": \"Garmin Inreach Mini 2-Way Satellite Communicator\", \"url\": \"https:\\/\\/www.rei.com\\/product\\/140110\\/garmin-inreach-mini\", \"urlPingSuffix\": \"DevEx,5258.1\"}, {\"name\": \"Garmin Gpsmap 66I GPS and 2-Way Satellite Communicator\", \"url\": \"https:\\/\\/www.rei.com\\/product\\/163568\\/garmin-gpsmap-66i\", \"urlPingSuffix\": \"DevEx,5259.1\"}, {\"name\": \"Spot Gen3 Satellite GPS Messenger\", \"url\": \"https:\\/\\/www.rei.com\\/product\\/860469\\/spot-gen3-satellite-gps-messenger\", \"urlPingSuffix\": \"DevEx,5260.1\"}, {\"name\": \"Garmin Inreach Explorer+ 2-Way Satellite Communicator\", \"url\": \"https:\\/\\/www.rei.com\\/product\\/119863\\/garmin-inreach-explorer\", \"urlPingSuffix\": \"DevEx,5261.1\"}, {\"name\": \"Spot X 2-Way Satellite Messenger With Bluetooth\", \"url\": \"https:\\/\\/www.rei.com\\/product\\/172306\\/spot-x-with-bluetooth\", \"urlPingSuffix\": \"DevEx,5262.1\"}], \"dateLastCrawled\": \"2021-07-12T17:58:00.0000000Z\", \"language\": \"en\", \"isNavigational\": false}, {\"id\": \"https:\\/\\/www.bingapis.com\\/api\\/v7\\/#WebPages.2\", \"name\": \"CBS News - Breaking news, 24\\/7 live streaming news & top ...\", \"url\": \"https:\\/\\/www.cbsnews.com\\/\", \"urlPingSuffix\": \"DevEx,5111.1\", \"isFamilyFriendly\": true, \"displayUrl\": \"https:\\/\\/www.cbsnews.com\", \"snippet\": \"Watch CBSN the live news stream from CBS News and get the latest, breaking news headlines of the day for national news and world news today.\", \"dateLastCrawled\": \"2021-07-14T00:42:00.0000000Z\", \"language\": \"en\", \"isNavigational\": false}, {\"id\": \"https:\\/\\/www.bingapis.com\\/api\\/v7\\/#WebPages.3\", \"name\": \"Investigation of the predictability and physical ...\", \"url\": \"https:\\/\\/agupubs.onlinelibrary.wiley.com\\/doi\\/full\\/10.1002\\/2015JD023584\", \"urlPingSuffix\": \"DevEx,5134.1\", \"isFamilyFriendly\": true, \"displayUrl\": \"https:\\/\\/agupubs.onlinelibrary.wiley.com\\/doi\\/full\\/10.1002\\/2015JD023584\", \"snippet\": \"Forecast uncertainties and physical mechanisms of a quasi-linear extreme-rain-producing mesoscale convective system (MCS) along the Meiyu front in East China, during the midnight-to-morning hours on 8 July 2007, are studied using ensembles of 24 h convection-permitting simulations with a nested grid spacing of 1.11 km.\", \"dateLastCrawled\": \"2021-07-09T12:39:00.0000000Z\", \"language\": \"en\", \"isNavigational\": false}, {\"id\": \"https:\\/\\/www.bingapis.com\\/api\\/v7\\/#WebPages.4\", \"name\": \"@facebook | Twitter\", \"url\": \"https:\\/\\/twitter.com\\/facebook\", \"urlPingSuffix\": \"DevEx,5147.1\", \"isFamilyFriendly\": true, \"displayUrl\": \"https:\\/\\/twitter.com\\/facebook\", \"snippet\": \"The latest tweets from @facebook\", \"dateLastCrawled\": \"2021-03-30T14:08:00.0000000Z\", \"language\": \"en\", \"isNavigational\": false}]}, \"entities\": {\"readLink\": \"https:\\/\\/www.bingapis.com\\/api\\/v7\\/entities\\/search?q=Seattleresponsefilter=weather\", \"queryScenario\": \"Disambiguation\", \"value\": [{\"id\": \"https:\\/\\/www.bingapis.com\\/api\\/v7\\/entities\\/0a985fc5-6c6a-ff51-ed2c-b928b1cb09d2\", \"readLink\": \"https:\\/\\/www.bingapis.com\\/api\\/v7\\/search?q=CBS+News+(Broadcast+Media)&filters=sid:%220a985fc5-6c6a-ff51-ed2c-b928b1cb09d2%22&responsefilter=entities,places\", \"readLinkPingSuffix\": \"DevEx,5263.1\", \"contractualRules\": [{\"_type\": \"ContractualRules\\/LicenseAttribution\", \"targetPropertyName\": \"description\", \"mustBeCloseToContent\": true, \"license\": {\"name\": \"CC-BY-SA\", \"url\": \"http:\\/\\/creativecommons.org\\/licenses\\/by-sa\\/3.0\\/\", \"urlPingSuffix\": \"DevEx,5267.1\"}, \"licenseNotice\": \"Text under CC-BY-SA license\"}, {\"_type\": \"ContractualRules\\/LinkAttribution\", \"targetPropertyName\": \"description\", \"mustBeCloseToContent\": true, \"text\": \"Wikipedia\", \"url\": \"http:\\/\\/en.wikipedia.org\\/wiki\\/CBS_News\", \"urlPingSuffix\": \"DevEx,5266.1\"}, {\"_type\": \"ContractualRules\\/MediaAttribution\", \"targetPropertyName\": \"image\", \"mustBeCloseToContent\": true, \"url\": \"http:\\/\\/www.cbsnews.com\\/\", \"urlPingSuffix\": \"DevEx,5265.1\"}], \"webSearchUrl\": \"https:\\/\\/www.bing.com\\/search?q=cbs+news&filters=ufn%3a%22cbs+news%22+sid%3a%220a985fc5-6c6a-ff51-ed2c-b928b1cb09d2%22&FORM=SNAPST\", \"webSearchUrlPingSuffix\": \"DevEx,5235.1\", \"name\": \"CBS News (Broadcast Media)\", \"image\": {\"name\": \"CBS News\", \"thumbnailUrl\": \"https:\\/\\/www.bing.com\\/th?id=AMMS_56a672dab9561fd2c331ce80add8ecf1&w=72&h=72&c=7&rs=1&qlt=80&cdv=1&pid=16.1\", \"provider\": [{\"_type\": \"Organization\", \"url\": \"http:\\/\\/www.cbsnews.com\\/\", \"urlPingSuffix\": \"DevEx,5265.1\"}], \"width\": 72, \"height\": 72, \"sourceWidth\": 256, \"sourceHeight\": 256}, \"description\": \"CBS News is the news division of the American television and radio service CBS. CBS News television programs include the CBS Evening News, CBS This Morning, news magazine programs CBS News Sunday Morning, 60 Minutes, and 48 Hours, and Sunday morning political affairs program Face the Nation. CBS News Radio produces hourly newscasts for hundreds of radio stations, and also oversees CBS News podcasts like The Takeout Podcast. CBS News also operates the 24-hour digital news network CBSN.\", \"entityPresentationInfo\": {\"entityScenario\": \"DisambiguationItem\", \"entityTypeHints\": [\"Organization\"], \"entityTypeDisplayHint\": \"Broadcast Media\"}}]}, \"weather\": {\"id\": \"https:\\/\\/www.bingapis.com\\/api\\/v7\\/#Weather\", \"contractualRules\": [{\"_type\": \"ContractualRules\\/LinkAttribution\", \"text\": \"Foreca\", \"url\": \"http:\\/\\/corporate.foreca.com\\/en\\/about-us\", \"urlPingSuffix\": \"DevEx,5256.1\"}], \"attributions\": [{\"provider\": {\"name\": \"Foreca\", \"url\": \"http:\\/\\/corporate.foreca.com\\/en\\/about-us\", \"urlPingSuffix\": \"DevEx,5256.1\"}}], \"location\": {\"name\": \"Seattle\", \"geo\": {\"latitude\": 47.6032, \"longitude\": -122.3303}, \"address\": {\"addressLocality\": \"Seattle\", \"addressRegion\": \"Washington\", \"addressCountry\": \"United States\"}}, \"currentWeather\": {\"image\": {\"url\": \"https:\\/\\/www.bing.com\\/th?id=OBW.v1.Cloudy\", \"thumbnailUrl\": \"https:\\/\\/www.bing.com\\/th?id=OBW.v1.Cloudy\", \"width\": 75, \"height\": 75}, \"conditionSummary\": \"Cloudy\", \"conditionDescription\": \"Cloudy\", \"temperature\": {\"value\": 60, \"unitText\": \"Fahrenheit\"}, \"precipitationChance\": 30, \"humidity\": 78, \"windSpeed\": {\"value\": 5, \"unitText\": \"MilesPerHour\"}, \"windDirection\": {\"value\": 199, \"unitText\": \"DegreesAzimuth\"}, \"date\": \"2021-07-16T00:00:00.0000000\", \"highTemperature\": {\"value\": 70, \"unitText\": \"Fahrenheit\"}, \"lowTemperature\": {\"value\": 55, \"unitText\": \"Fahrenheit\"}, \"sunrise\": \"2021-07-16T05:27:57.0000000\", \"sunset\": \"2021-07-16T21:02:16.0000000\"}, \"dailyForecast\": [{\"image\": {\"url\": \"https:\\/\\/www.bing.com\\/th?id=OBW.v1.PartlyCloudyDay\", \"thumbnailUrl\": \"https:\\/\\/www.bing.com\\/th?id=OBW.v1.PartlyCloudyDay\", \"width\": 75, \"height\": 75}, \"conditionSummary\": \"Clear\", \"conditionDescription\": \"Partly sunny\", \"precipitationChance\": 0, \"date\": \"2021-07-17T00:00:00.0000000\", \"highTemperature\": {\"value\": 74, \"unitText\": \"Fahrenheit\"}, \"lowTemperature\": {\"value\": 54, \"unitText\": \"Fahrenheit\"}}, {\"image\": {\"url\": \"https:\\/\\/www.bing.com\\/th?id=OBW.v1.SunnyDay\", \"thumbnailUrl\": \"https:\\/\\/www.bing.com\\/th?id=OBW.v1.SunnyDay\", \"width\": 75, \"height\": 75}, \"conditionSummary\": \"Sunny\", \"conditionDescription\": \"Sunny\", \"precipitationChance\": 0, \"date\": \"2021-07-18T00:00:00.0000000\", \"highTemperature\": {\"value\": 77, \"unitText\": \"Fahrenheit\"}, \"lowTemperature\": {\"value\": 55, \"unitText\": \"Fahrenheit\"}}, {\"image\": {\"url\": \"https:\\/\\/www.bing.com\\/th?id=OBW.v1.SunnyDay\", \"thumbnailUrl\": \"https:\\/\\/www.bing.com\\/th?id=OBW.v1.SunnyDay\", \"width\": 75, \"height\": 75}, \"conditionSummary\": \"Sunny\", \"conditionDescription\": \"Sunny\", \"precipitationChance\": 0, \"date\": \"2021-07-19T00:00:00.0000000\", \"highTemperature\": {\"value\": 78, \"unitText\": \"Fahrenheit\"}, \"lowTemperature\": {\"value\": 56, \"unitText\": \"Fahrenheit\"}}, {\"image\": {\"url\": \"https:\\/\\/www.bing.com\\/th?id=OBW.v1.SunnyDay\", \"thumbnailUrl\": \"https:\\/\\/www.bing.com\\/th?id=OBW.v1.SunnyDay\", \"width\": 75, \"height\": 75}, \"conditionSummary\": \"Sunny\", \"conditionDescription\": \"Sunny\", \"precipitationChance\": 0, \"date\": \"2021-07-20T00:00:00.0000000\", \"highTemperature\": {\"value\": 76, \"unitText\": \"Fahrenheit\"}, \"lowTemperature\": {\"value\": 54, \"unitText\": \"Fahrenheit\"}}, {\"image\": {\"url\": \"https:\\/\\/www.bing.com\\/th?id=OBW.v1.SunnyDay\", \"thumbnailUrl\": \"https:\\/\\/www.bing.com\\/th?id=OBW.v1.SunnyDay\", \"width\": 75, \"height\": 75}, \"conditionSummary\": \"Sunny\", \"conditionDescription\": \"Sunny\", \"precipitationChance\": 2, \"date\": \"2021-07-21T00:00:00.0000000\", \"highTemperature\": {\"value\": 73, \"unitText\": \"Fahrenheit\"}, \"lowTemperature\": {\"value\": 54, \"unitText\": \"Fahrenheit\"}}, {\"image\": {\"url\": \"https:\\/\\/www.bing.com\\/th?id=OBW.v1.SunnyDay\", \"thumbnailUrl\": \"https:\\/\\/www.bing.com\\/th?id=OBW.v1.SunnyDay\", \"width\": 75, \"height\": 75}, \"conditionSummary\": \"Sunny\", \"conditionDescription\": \"Sunny\", \"precipitationChance\": 2, \"date\": \"2021-07-22T00:00:00.0000000\", \"highTemperature\": {\"value\": 74, \"unitText\": \"Fahrenheit\"}, \"lowTemperature\": {\"value\": 56, \"unitText\": \"Fahrenheit\"}}, {\"image\": {\"url\": \"https:\\/\\/www.bing.com\\/th?id=OBW.v1.SunnyDay\", \"thumbnailUrl\": \"https:\\/\\/www.bing.com\\/th?id=OBW.v1.SunnyDay\", \"width\": 75, \"height\": 75}, \"conditionSummary\": \"Sunny\", \"conditionDescription\": \"Sunny\", \"precipitationChance\": 2, \"date\": \"2021-07-23T00:00:00.0000000\", \"highTemperature\": {\"value\": 77, \"unitText\": \"Fahrenheit\"}, \"lowTemperature\": {\"value\": 58, \"unitText\": \"Fahrenheit\"}}, {\"image\": {\"url\": \"https:\\/\\/www.bing.com\\/th?id=OBW.v1.SunnyDay\", \"thumbnailUrl\": \"https:\\/\\/www.bing.com\\/th?id=OBW.v1.SunnyDay\", \"width\": 75, \"height\": 75}, \"conditionSummary\": \"Sunny\", \"conditionDescription\": \"Sunny\", \"precipitationChance\": 3, \"date\": \"2021-07-24T00:00:00.0000000\", \"highTemperature\": {\"value\": 78, \"unitText\": \"Fahrenheit\"}, \"lowTemperature\": {\"value\": 59, \"unitText\": \"Fahrenheit\"}}, {\"image\": {\"url\": \"https:\\/\\/www.bing.com\\/th?id=OBW.v1.SunnyDay\", \"thumbnailUrl\": \"https:\\/\\/www.bing.com\\/th?id=OBW.v1.SunnyDay\", \"width\": 75, \"height\": 75}, \"conditionSummary\": \"Sunny\", \"conditionDescription\": \"Sunny\", \"precipitationChance\": 2, \"date\": \"2021-07-25T00:00:00.0000000\", \"highTemperature\": {\"value\": 75, \"unitText\": \"Fahrenheit\"}, \"lowTemperature\": {\"value\": 59, \"unitText\": \"Fahrenheit\"}}]}, \"rankingResponse\": {\"mainline\": {\"items\": [{\"answerType\": \"Weather\", \"value\": {\"id\": \"https:\\/\\/www.bingapis.com\\/api\\/v7\\/#Weather\"}}, {\"answerType\": \"WebPages\", \"resultIndex\": 0, \"value\": {\"id\": \"https:\\/\\/www.bingapis.com\\/api\\/v7\\/#WebPages.0\"}}, {\"answerType\": \"WebPages\", \"resultIndex\": 1, \"value\": {\"id\": \"https:\\/\\/www.bingapis.com\\/api\\/v7\\/#WebPages.1\"}}, {\"answerType\": \"WebPages\", \"resultIndex\": 2, \"value\": {\"id\": \"https:\\/\\/www.bingapis.com\\/api\\/v7\\/#WebPages.2\"}}, {\"answerType\": \"WebPages\", \"resultIndex\": 3, \"value\": {\"id\": \"https:\\/\\/www.bingapis.com\\/api\\/v7\\/#WebPages.3\"}}, {\"answerType\": \"WebPages\", \"resultIndex\": 4, \"value\": {\"id\": \"https:\\/\\/www.bingapis.com\\/api\\/v7\\/#WebPages.4\"}}, {\"answerType\": \"BingGlobal\"}]}, \"sidebar\": {\"items\": [{\"answerType\": \"Entities\", \"resultIndex\": 0, \"value\": {\"id\": \"https:\\/\\/www.bingapis.com\\/api\\/v7\\/entities\\/0a985fc5-6c6a-ff51-ed2c-b928b1cb09d2\"}}]}, \"pagination\": {\"items\": [{\"answerType\": \"Pagination\", \"value\": {\"id\": \"https:\\/\\/www.bingapis.com\\/api\\/v7\\/#Pagination\"}}]}}, \"pagination\": {\"id\": \"https:\\/\\/www.bingapis.com\\/api\\/v7\\/#Pagination\", \"currentPageNumber\": 1, \"nextPage\": {\"pageNumber\": 2, \"offset\": 5}, \"paginationLinks\": [{\"pageNumber\": 1, \"offset\": 0}, {\"pageNumber\": 2, \"offset\": 5}, {\"pageNumber\": 3, \"offset\": 15}, {\"pageNumber\": 4, \"offset\": 25}, {\"pageNumber\": 5, \"offset\": 35}]}}"}]
[null,"TempC",{"$f":"MAX(MIN(TempVal_C,MaxTemp),0)","v":15.555555555555555}]
[null,"TempGauge",{"$f":"MaxTemp-TempC","v":24.444444444444443},null,null,null,null,null,null,null,null,null,null,null,null,null,null,null,null,null,null,null,null,"Live Vol",70,null,"A",{"$f":"Y20","v":70}]
[null,"WindSpeed",{"$f":"MAX(MIN(Wind_KPH,120),0.4)","v":8.0467200000000005},null,null,null,null,null,null,null,null,null,null,null,null,null,null,null,null,null,null,null,null,null,null,null,"~A",{"$f":"Y23-Y20","v":30}]
[null,"Gauge",{"$f":"180-C21","v":171.95328000000001}]
[null,"MarkerX",{"$f":"INDEX(Tbl_CityLookup[X],LocNum)","v":0.48},null,null,null,null,null,null,null,null,null,null,null,null,null,null,null,null,null,null,null,null,"Max",100]
[null,"MarkerY",{"$f":"INDEX(Tbl_CityLookup[Y],LocNum)+0.12","v":2.62}]
[null,"CityName",{"$f":"INDEX(Tbl_CityLookup[CityTranslated],LocNum)","v":"Seattle, USA"}]
[null,"WindSimToggle",1,"🔘🞅⭕⭘○◯◉"]
[null,"WindVal",{"$f":"WindSimToggle*MIN(MAX(Wind_KPH*10,80),255)","v":80.467200000000005},"☐☒"]

{"sheet":"Data In","index":3,"n_rows":7,"n_cols":11,"rows_kept":7,"cut":false,"hidden":false,"merged":[[0,0,0,9],[1,0,1,9],[2,0,2,5],[5,0,5,5]]}
["Data In (From Source)",null,null,null,null,null,null,null,null,null,"update"]
["Data coming from the current data source will appear below as it is received."]
["Current Data"]
["Time","Wind Speed","RPM","Time Interval","Temp (°C)","Temp (°F)"]
[]
["Historical Data"]
[{"$f":"IF(A4=\"\",\"\",A4)","v":"Time"},{"$f":"IF(B4=\"\",\"\",B4)","v":"Wind Speed"},"RPM","Time Interval","Temp (°C)","Temp (°F)"]

{"sheet":"Data Out","index":4,"n_rows":5,"n_cols":11,"rows_kept":5,"cut":false,"hidden":false,"merged":[[0,0,0,9],[1,0,1,9],[2,0,2,9]]}
["Data Out (To Device)",null,null,null,null,null,null,null,null,null,"update"]
["Data entered into the channels below will be sent to the currently connected device as a comma-delimited string."]
[]
["CH1","CH2","CH3","CH4","CH5"]
[null,null,null,{"$f":"WindVal","v":80.467200000000005}]

{"sheet":"Settings","index":5,"n_rows":12,"n_cols":11,"rows_kept":12,"cut":false,"hidden":false,"merged":[[0,0,0,5],[1,0,1,5],[11,0,11,6]]}
["Workbook Settings",null,null,null,null,null,null,"update",null,null,"update"]
["Settings below will affect how data is read into the current workbook from data sources. Clear a field's contents to revert to its default setting."]
[]
["Data interval (ms)  ","150",75]
[]
["Data rows  ","15",1]
[]
["Data channels  ","10",5]
[]
["Data orientation  ","Newest last"]
[]
["WARNING: Changing settings may result in the loss of content and/or custom formatting in the Data In and Data Out worksheets. Always save before changing values."]